Workbook

Sheet C&S
B1: Januar | C1: Februar | D1: März | E1: April | F1: Mai | G1: Juni | H1: Juli | I1: August | J1: September | K1: Oktober | L1: November | M1: Dezember | N1: Gesamt | P1: 2016 | Q1: Differenz | R1: in %
A2: Saison | B2: - | C2: - | D2: - | E2: - | F2: - | G2: - | H2: - | I2: - | J2: - | K2: - | L2: - | M2: - | N2: - | P2: - | Q2: - | R2: -
A3: NW + GW Stk. | B3: =NW!B3+GW!B3 -> 57.75554661 | C3: =NW!C3+GW!C3 -> 54.20878518 | D3: =NW!D3+GW!D3 -> 75.71689537 | E3: =NW!E3+GW!E3 -> 67.73044784 | F3: =NW!F3+GW!F3 -> 89.80275464 | G3: =NW!G3+GW!G3 -> 74.08976335 | H3: =NW!H3+GW!H3 -> 60.3266054 | I3: =NW!I3+GW!I3 -> 60.64980499 | J3: =NW!J3+GW!J3 -> 61.36365666 | K3: =NW!K3+GW!K3 -> 74.80533378 | L3: =NW!L3+GW!L3 -> 54.47884395 | M3: =NW!M3+GW!M3 -> 69.07156222 | N3: =SUM(B3:M3) -> 800 | P3: 769 | Q3: =N3-P3 -> 31 | R3: =Q3/P3 -> 0.04031209363
A4: Verk. Stunden | B4: =Aftersales!B3 -> 1334.773574 | C4: =Aftersales!C3 -> 1178.54294 | D4: =Aftersales!D3 -> 1621.418289 | E4: =Aftersales!E3 -> 1727.449926 | F4: =Aftersales!F3 -> 1446.245302 | G4: =Aftersales!G3 -> 1585.773551 | H4: =Aftersales!H3 -> 1408.188405 | I4: =Aftersales!I3 -> 1464.788379 | J4: =Aftersales!J3 -> 1336.828545 | K4: =Aftersales!K3 -> 1897.178476 | L4: =Aftersales!L3 -> 1850.574586 | M4: =Aftersales!M3 -> 1578.238027 | N4: =SUM(B4:M4) -> 18430 | P4: 17759 | Q4: =N4-P4 -> 671 | R4: =Q4/P4 -> 0.03778365899
A5: Umsatzerlöse | B5: =Sales!B4+Aftersales!B4 -> 940886.3361 | C5: =Sales!C4+Aftersales!C4 -> 869061.6845 | D5: =Sales!D4+Aftersales!D4 -> 1209197.546 | E5: =Sales!E4+Aftersales!E4 -> 1134052.417 | F5: =Sales!F4+Aftersales!F4 -> 1343971.244 | G5: =Sales!G4+Aftersales!G4 -> 1183060.79 | H5: =Sales!H4+Aftersales!H4 -> 985418.0009 | I5: =Sales!I4+Aftersales!I4 -> 999975.0597 | J5: =Sales!J4+Aftersales!J4 -> 984283.6561 | K5: =Sales!K4+Aftersales!K4 -> 1250485.118 | L5: =Sales!L4+Aftersales!L4 -> 999379.3581 | M5: =Sales!M4+Aftersales!M4 -> 1121818.67 | N5: =SUM(B5:M5) -> 13021589.88 | P5: 12536119 | Q5: 485470.881 | R5: 0.03872577159
A6: Einsatzwerte | B6: =Sales!B6+Aftersales!B6 -> 742758.1136 | C6: =Sales!C6+Aftersales!C6 -> 690817.6074 | D6: =Sales!D6+Aftersales!D6 -> 962802.2838 | E6: =Sales!E6+Aftersales!E6 -> 884855.6502 | F6: =Sales!F6+Aftersales!F6 -> 1101286.972 | G6: =Sales!G6+Aftersales!G6 -> 942043.7184 | H6: =Sales!H6+Aftersales!H6 -> 777015.4628 | I6: =Sales!I6+Aftersales!I6 -> 785358.2977 | J6: =Sales!J6+Aftersales!J6 -> 782229.6292 | K6: =Sales!K6+Aftersales!K6 -> 976371.5801 | L6: =Sales!L6+Aftersales!L6 -> 751021.9666 | M6: =Sales!M6+Aftersales!M6 -> 886747.7184 | N6: =SUM(B6:M6) -> 10283309 | P6: 9820877 | Q6: 462432 | R6: 0.04708662984
A7: Bruttoertrag | B7: =Sales!B7+Aftersales!B7 -> 198128.2225 | C7: =Sales!C7+Aftersales!C7 -> 178244.0771 | D7: =Sales!D7+Aftersales!D7 -> 246395.2622 | E7: =Sales!E7+Aftersales!E7 -> 249196.7672 | F7: =Sales!F7+Aftersales!F7 -> 242684.272 | G7: =Sales!G7+Aftersales!G7 -> 241017.0715 | H7: =Sales!H7+Aftersales!H7 -> 208402.5381 | I7: =Sales!I7+Aftersales!I7 -> 214616.762 | J7: =Sales!J7+Aftersales!J7 -> 202054.0269 | K7: =Sales!K7+Aftersales!K7 -> 274113.5383 | L7: =Sales!L7+Aftersales!L7 -> 248357.3915 | M7: =Sales!M7+Aftersales!M7 -> 235070.9515 | N7: =SUM(B7:M7) -> 2738280.881 | P7: 2715243 | Q7: 23037.88096 | R7: 0.00848464795
A9: Variable Kosten | B9: =Sales!B10+Aftersales!B10 -> 22016.54402 | C9: =Sales!C10+Aftersales!C10 -> 20484.79815 | D9: =Sales!D10+Aftersales!D10 -> 28552.59262 | E9: =Sales!E10+Aftersales!E10 -> 26211.394 | F9: =Sales!F10+Aftersales!F10 -> 32710.45756 | G9: =Sales!G10+Aftersales!G10 -> 27937.06814 | H9: =Sales!H10+Aftersales!H10 -> 23030.50667 | I9: =Sales!I10+Aftersales!I10 -> 23272.60551 | J9: =Sales!J10+Aftersales!J10 -> 23195.14498 | K9: =Sales!K10+Aftersales!K10 -> 28923.41509 | L9: =Sales!L10+Aftersales!L10 -> 22198.93622 | M9: =Sales!M10+Aftersales!M10 -> 26286.53705 | N9: =SUM(B9:M9) -> 304820 | P9: 293681 | Q9: 11139 | R9: 0.03792890926
A10: Fixum/Prov./Soz. | B10: =Sales!B11+Aftersales!B11 -> 16480.95558 | C10: =Sales!C11+Aftersales!C11 -> 15468.86201 | D10: =Sales!D11+Aftersales!D11 -> 21606.35406 | E10: =Sales!E11+Aftersales!E11 -> 19327.36451 | F10: =Sales!F11+Aftersales!F11 -> 25625.85409 | G10: =Sales!G11+Aftersales!G11 -> 21142.04038 | H10: =Sales!H11+Aftersales!H11 -> 17214.62547 | I10: =Sales!I11+Aftersales!I11 -> 17306.85277 | J10: =Sales!J11+Aftersales!J11 -> 17510.55542 | K10: =Sales!K11+Aftersales!K11 -> 21346.23349 | L10: =Sales!L11+Aftersales!L11 -> 15545.92519 | M10: =Sales!M11+Aftersales!M11 -> 19710.06103 | N10: 228285.684 | P10: 217538 | Q10: 10747.684 | R10: 0.04940600723
A11: Provisionen | B11: =Sales!B12+Aftersales!B12 -> 324.6648639 | C11: =Sales!C12+Aftersales!C12 -> 304.7272322 | D11: =Sales!D12+Aftersales!D12 -> 425.6321163 | E11: =Sales!E12+Aftersales!E12 -> 380.7373996 | F11: =Sales!F12+Aftersales!F12 -> 504.8138373 | G11: =Sales!G12+Aftersales!G12 -> 416.4854173 | H11: =Sales!H12+Aftersales!H12 -> 339.1177173 | I11: =Sales!I12+Aftersales!I12 -> 340.9345394 | J11: =Sales!J12+Aftersales!J12 -> 344.9473584 | K11: =Sales!K12+Aftersales!K12 -> 420.5078981 | L11: =Sales!L12+Aftersales!L12 -> 306.2453304 | M11: =Sales!M12+Aftersales!M12 -> 388.2762897 | N11: 4497.09 | P11: 4381 | Q11: 116.09 | R11: 0.02649851632
A12: Fertigmachen | B12: =Sales!B13+Aftersales!B13 -> 944.3690284 | C12: =Sales!C13+Aftersales!C13 -> 886.3754358 | D12: =Sales!D13+Aftersales!D13 -> 1238.057557 | E12: =Sales!E13+Aftersales!E13 -> 1107.470035 | F12: =Sales!F13+Aftersales!F13 -> 1468.377414 | G12: =Sales!G13+Aftersales!G13 -> 1211.452093 | H12: =Sales!H13+Aftersales!H13 -> 986.4087706 | I12: =Sales!I13+Aftersales!I13 -> 991.6934524 | J12: =Sales!J13+Aftersales!J13 -> 1003.365741 | K12: =Sales!K13+Aftersales!K13 -> 1223.152485 | L12: =Sales!L13+Aftersales!L13 -> 890.7912044 | M12: =Sales!M13+Aftersales!M13 -> 1129.398784 | N12: 13080.912 | P12: 13683 | Q12: -602.088 | R12: -0.044002631
A13: Kulanz | B13: =Sales!B14+Aftersales!B14 -> 4266.554549 | C13: =Sales!C14+Aftersales!C14 -> 3824.833474 | D13: =Sales!D14+Aftersales!D14 -> 5282.54888 | E13: =Sales!E14+Aftersales!E14 -> 5395.822054 | F13: =Sales!F14+Aftersales!F14 -> 5111.412227 | G13: =Sales!G14+Aftersales!G14 -> 5167.090251 | H13: =Sales!H14+Aftersales!H14 -> 4490.354707 | I13: =Sales!I14+Aftersales!I14 -> 4633.124745 | J13: =Sales!J14+Aftersales!J14 -> 4336.276463 | K13: =Sales!K14+Aftersales!K14 -> 5933.521224 | L13: =Sales!L14+Aftersales!L14 -> 5455.974489 | M13: =Sales!M14+Aftersales!M14 -> 5058.800938 | N13: 58956.314 | P13: 58080 | Q13: 876.314 | R13: =Q13/P13 -> 0.01508805096
A14: sonst. variable Kosten | B14: =Sales!B15+Aftersales!B15 -> 0 | C14: =Sales!C15+Aftersales!C15 -> 0 | D14: =Sales!D15+Aftersales!D15 -> 0 | E14: =Sales!E15+Aftersales!E15 -> 0 | F14: =Sales!F15+Aftersales!F15 -> 0 | G14: =Sales!G15+Aftersales!G15 -> 0 | H14: =Sales!H15+Aftersales!H15 -> 0 | I14: =Sales!I15+Aftersales!I15 -> 0 | J14: =Sales!J15+Aftersales!J15 -> 0 | K14: =Sales!K15+Aftersales!K15 -> 0 | L14: =Sales!L15+Aftersales!L15 -> 0 | M14: =Sales!M15+Aftersales!M15 -> 0 | N14: 0 | P14: 0 | Q14: 0 | R14: =Q14/P14 -> 
A15: Bruttoertrag II | B15: =Sales!B16+Aftersales!B16 -> 176111.6785 | C15: =Sales!C16+Aftersales!C16 -> 157759.2789 | D15: =Sales!D16+Aftersales!D16 -> 217842.6696 | E15: =Sales!E16+Aftersales!E16 -> 222985.3732 | F15: =Sales!F16+Aftersales!F16 -> 209973.8145 | G15: =Sales!G16+Aftersales!G16 -> 213080.0034 | H15: =Sales!H16+Aftersales!H16 -> 185372.0315 | I15: =Sales!I16+Aftersales!I16 -> 191344.1565 | J15: =Sales!J16+Aftersales!J16 -> 178858.8819 | K15: =Sales!K16+Aftersales!K16 -> 245190.1232 | L15: =Sales!L16+Aftersales!L16 -> 226158.4553 | M15: =Sales!M16+Aftersales!M16 -> 208784.4144 | N15: 2433460.881 | P15: 2421561 | Q15: 11899.88095 | R15: 0.004914136359
A16: Direkte Kosten | B16: =Sales!B17+Aftersales!B17 -> 96675 | C16: =Sales!C17+Aftersales!C17 -> 96675 | D16: =Sales!D17+Aftersales!D17 -> 96675 | E16: =Sales!E17+Aftersales!E17 -> 96675 | F16: =Sales!F17+Aftersales!F17 -> 96675 | G16: =Sales!G17+Aftersales!G17 -> 96675 | H16: =Sales!H17+Aftersales!H17 -> 96675 | I16: =Sales!I17+Aftersales!I17 -> 96675 | J16: =Sales!J17+Aftersales!J17 -> 96675 | K16: =Sales!K17+Aftersales!K17 -> 96675 | L16: =Sales!L17+Aftersales!L17 -> 96675 | M16: =Sales!M17+Aftersales!M17 -> 96675 | N16: 1160100 | P16: 1180123 | Q16: -20023 | R16: -0.01696687549
A17: Personalkosten | B17: =Sales!B18+Aftersales!B18 -> 67781.18833 | C17: =Sales!C18+Aftersales!C18 -> 67781.18833 | D17: =Sales!D18+Aftersales!D18 -> 67781.18833 | E17: =Sales!E18+Aftersales!E18 -> 67781.18833 | F17: =Sales!F18+Aftersales!F18 -> 67781.18833 | G17: =Sales!G18+Aftersales!G18 -> 67781.18833 | H17: =Sales!H18+Aftersales!H18 -> 67781.18833 | I17: =Sales!I18+Aftersales!I18 -> 67781.18833 | J17: =Sales!J18+Aftersales!J18 -> 67781.18833 | K17: =Sales!K18+Aftersales!K18 -> 67781.18833 | L17: =Sales!L18+Aftersales!L18 -> 67781.18833 | M17: =Sales!M18+Aftersales!M18 -> 67781.18833 | N17: 813374.26 | P17: 811160 | Q17: 2214.26 | R17: 0.002729745056
A18: Werbekosten | B18: =Sales!B19+Aftersales!B19 -> 2664.6875 | C18: =Sales!C19+Aftersales!C19 -> 2664.6875 | D18: =Sales!D19+Aftersales!D19 -> 2664.6875 | E18: =Sales!E19+Aftersales!E19 -> 2664.6875 | F18: =Sales!F19+Aftersales!F19 -> 2664.6875 | G18: =Sales!G19+Aftersales!G19 -> 2664.6875 | H18: =Sales!H19+Aftersales!H19 -> 2664.6875 | I18: =Sales!I19+Aftersales!I19 -> 2664.6875 | J18: =Sales!J19+Aftersales!J19 -> 2664.6875 | K18: =Sales!K19+Aftersales!K19 -> 2664.6875 | L18: =Sales!L19+Aftersales!L19 -> 2664.6875 | M18: =Sales!M19+Aftersales!M19 -> 2664.6875 | N18: 31976.25 | P18: 36769 | Q18: -4792.75 | R18: -0.1303475754
A19: Fahrzeugkosten | B19: =Sales!B20+Aftersales!B20 -> 8308.1825 | C19: =Sales!C20+Aftersales!C20 -> 8308.1825 | D19: =Sales!D20+Aftersales!D20 -> 8308.1825 | E19: =Sales!E20+Aftersales!E20 -> 8308.1825 | F19: =Sales!F20+Aftersales!F20 -> 8308.1825 | G19: =Sales!G20+Aftersales!G20 -> 8308.1825 | H19: =Sales!H20+Aftersales!H20 -> 8308.1825 | I19: =Sales!I20+Aftersales!I20 -> 8308.1825 | J19: =Sales!J20+Aftersales!J20 -> 8308.1825 | K19: =Sales!K20+Aftersales!K20 -> 8308.1825 | L19: =Sales!L20+Aftersales!L20 -> 8308.1825 | M19: =Sales!M20+Aftersales!M20 -> 8308.1825 | N19: 99698.19 | P19: 95352 | Q19: 4346.19 | R19: 0.04558048075
A20: Abschreibungen | B20: =Sales!B21+Aftersales!B21 -> 13124.83333 | C20: =Sales!C21+Aftersales!C21 -> 13124.83333 | D20: =Sales!D21+Aftersales!D21 -> 13124.83333 | E20: =Sales!E21+Aftersales!E21 -> 13124.83333 | F20: =Sales!F21+Aftersales!F21 -> 13124.83333 | G20: =Sales!G21+Aftersales!G21 -> 13124.83333 | H20: =Sales!H21+Aftersales!H21 -> 13124.83333 | I20: =Sales!I21+Aftersales!I21 -> 13124.83333 | J20: =Sales!J21+Aftersales!J21 -> 13124.83333 | K20: =Sales!K21+Aftersales!K21 -> 13124.83333 | L20: =Sales!L21+Aftersales!L21 -> 13124.83333 | M20: =Sales!M21+Aftersales!M21 -> 13124.83333 | N20: 157498 | P20: 177508 | Q20: -20010 | R20: -0.1127273137
A21: Gemeinkosten | B21: =Sales!B22+Aftersales!B22 -> 4796.108333 | C21: =Sales!C22+Aftersales!C22 -> 4796.108333 | D21: =Sales!D22+Aftersales!D22 -> 4796.108333 | E21: =Sales!E22+Aftersales!E22 -> 4796.108333 | F21: =Sales!F22+Aftersales!F22 -> 4796.108333 | G21: =Sales!G22+Aftersales!G22 -> 4796.108333 | H21: =Sales!H22+Aftersales!H22 -> 4796.108333 | I21: =Sales!I22+Aftersales!I22 -> 4796.108333 | J21: =Sales!J22+Aftersales!J22 -> 4796.108333 | K21: =Sales!K22+Aftersales!K22 -> 4796.108333 | L21: =Sales!L22+Aftersales!L22 -> 4796.108333 | M21: =Sales!M22+Aftersales!M22 -> 4796.108333 | N21: 57553.3 | P21: 59335 | Q21: -1781.7 | R21: -0.03002780821
A22: Deckungsbeitrag | B22: =Sales!B23+Aftersales!B23 -> 79436.67848 | C22: =Sales!C23+Aftersales!C23 -> 61084.27894 | D22: =Sales!D23+Aftersales!D23 -> 121167.6696 | E22: =Sales!E23+Aftersales!E23 -> 126310.3732 | F22: =Sales!F23+Aftersales!F23 -> 113298.8145 | G22: =Sales!G23+Aftersales!G23 -> 116405.0034 | H22: =Sales!H23+Aftersales!H23 -> 88697.03146 | I22: =Sales!I23+Aftersales!I23 -> 94669.15647 | J22: =Sales!J23+Aftersales!J23 -> 82183.88194 | K22: =Sales!K23+Aftersales!K23 -> 148515.1232 | L22: =Sales!L23+Aftersales!L23 -> 129483.4553 | M22: =Sales!M23+Aftersales!M23 -> 112109.4144 | N22: 1273360.881 | P22: 1241438 | Q22: 31922.88095 | R22: 0.02571443838
A24: indirekte Kosten | B24: =SUM(B25:B31) -> 103166.6667 | C24: =SUM(C25:C31) -> 103166.6667 | D24: 103166.6667 | E24: 103166.6667 | F24: 103166.6667 | G24: 103166.6667 | H24: 103166.6667 | I24: 103166.6667 | J24: 103166.6667 | K24: 103166.6667 | L24: 103166.6667 | M24: 103166.6667 | N24: =SUM(B24:M24) -> 1238000 | P24: 1317750 | Q24: -79750 | R24: -0.06051982546
A25: Verwaltungspersonal | B25: =$N$25/12 -> 31000 | C25: 31000 | D25: 31000 | E25: 31000 | F25: 31000 | G25: 31000 | H25: 31000 | I25: 31000 | J25: 31000 | K25: 31000 | L25: 31000 | M25: =$N$25/12 -> 31000 | N25: 372000 | P25: 452100 | Q25: -80100 | R25: -0.1771731918
A26: Imagewerbung | B26: =$N$26/12 -> 1083.333333 | C26: 1083.333333 | D26: 1083.333333 | E26: 1083.333333 | F26: 1083.333333 | G26: 1083.333333 | H26: 1083.333333 | I26: 1083.333333 | J26: 1083.333333 | K26: 1083.333333 | L26: 1083.333333 | M26: =$N$26/12 -> 1083.333333 | N26: 13000 | P26: 12652 | Q26: 348 | R26: 0.02750553272
A27: Fahrzeugkosten | B27: =$N$27/12 -> 666.6666667 | C27: 666.6666667 | D27: 666.6666667 | E27: 666.6666667 | F27: 666.6666667 | G27: 666.6666667 | H27: 666.6666667 | I27: 666.6666667 | J27: 666.6666667 | K27: 666.6666667 | L27: 666.6666667 | M27: =$N$27/12 -> 666.6666667 | N27: 8000 | P27: 8439 | Q27: -439 | R27: -0.05202038156
A28: Abschreibungen | B28: =$N$28/12 -> 8750 | C28: 8750 | D28: 8750 | E28: 8750 | F28: 8750 | G28: 8750 | H28: 8750 | I28: 8750 | J28: 8750 | K28: 8750 | L28: 8750 | M28: =$N$28/12 -> 8750 | N28: 105000 | P28: 104570 | Q28: 430 | R28: 0.004112078034
A29: Gemeinkosten | B29: =$N$29/12 -> 41833.33333 | C29: 41833.33333 | D29: 41833.33333 | E29: 41833.33333 | F29: 41833.33333 | G29: 41833.33333 | H29: 41833.33333 | I29: 41833.33333 | J29: 41833.33333 | K29: 41833.33333 | L29: 41833.33333 | M29: =$N$29/12 -> 41833.33333 | N29: 502000 | P29: 501876 | Q29: 124 | R29: 0.0002470729822
A30: Raumkosten | B30: =$N$30/12 -> 14333.33333 | C30: 14333.33333 | D30: 14333.33333 | E30: 14333.33333 | F30: 14333.33333 | G30: 14333.33333 | H30: 14333.33333 | I30: 14333.33333 | J30: 14333.33333 | K30: 14333.33333 | L30: 14333.33333 | M30: =$N$30/12 -> 14333.33333 | N30: 172000 | P30: 172113 | Q30: -113 | R30: -0.0006565454091
A31: Kalk. Kosten | B31: =$N$31/12 -> 5500 | C31: 5500 | D31: 5500 | E31: 5500 | F31: 5500 | G31: 5500 | H31: 5500 | I31: 5500 | J31: 5500 | K31: 5500 | L31: 5500 | M31: =$N$31/12 -> 5500 | N31: 66000 | P31: 66000 | Q31: 0 | R31: 0
A33: Betriebsergebnis | B33: =B22-B24 -> -23729.98819 | C33: =C22-C24 -> -42082.38773 | D33: 18001.0029 | E33: 23143.70657 | F33: 10132.14782 | G33: 13238.33672 | H33: -14469.6352 | I33: -8497.510198 | J33: -20982.78473 | K33: 45348.45657 | L33: 26316.78864 | M33: 8942.74778 | N33: =N22-N24 -> 35360.88095 | P33: -76312 | Q33: 111672.881
A34: Neutrales Ergebnis | B34: =$N$34/12 -> -2500 | C34: -2500 | D34: -2500 | E34: -2500 | F34: -2500 | G34: -2500 | H34: -2500 | I34: -2500 | J34: -2500 | K34: -2500 | L34: -2500 | M34: =$N$34/12 -> -2500 | N34: -30000 | P34: -20438 | Q34: -9562
A35: Untenehmensergebnis | B35: =SUM(B33:B34) -> -26229.98819 | C35: =SUM(C33:C34) -> -44582.38773 | D35: 15501.0029 | E35: 20643.70657 | F35: 7632.147817 | G35: 10738.33672 | H35: -16969.6352 | I35: -10997.5102 | J35: -23482.78473 | K35: 42848.45657 | L35: 23816.78864 | M35: 6442.74778 | N35: =N33+N34 -> 5360.880955 | P35: -96751 | Q35: 102111.881
M37: DB pro Tag | N37: =N22/251 -> 5073.15092
M38: DB pro Monat | N38: =(N37*251)/12 -> 106113.4067
M40: Umsatzrendite | N40: =N35/N5 -> 0.0004116917369
M42: Personal vs. BE | N42: =N10+N11+N17+N25 -> 1418157.034
M43: Ziel < 50% | N43: =N42/N7 -> 0.5179004988
M45: AfA vs. BE | N45: =N20+N28 -> 262498
M46: Ziel < 5% | N46: =N45/N7 -> 0.09586233532

Sheet Sales
B1: Januar | C1: Februar | D1: März | E1: April | F1: Mai | G1: Juni | H1: Juli | I1: August | J1: September | K1: Oktober | L1: November | M1: Dezember | N1: Gesamt
A2: Saison | B2: 0.07219443327 | C2: 0.06776098148 | D2: 0.09464611922 | E2: 0.08466305979 | F2: 0.1122534433 | G2: 0.09261220419 | H2: 0.07540825675 | I2: 0.07581225624 | J2: 0.07670457083 | K2: 0.09350666722 | L2: 0.06809855493 | M2: 0.08633945278 | N2: =SUM(B2:M2) -> 1
A3: NW + GW Stk. | B3: =$N$3*B2 -> 57.75554661 | C3: =$N$3*C2 -> 54.20878518 | D3: 75.71689537 | E3: 67.73044784 | F3: 89.80275464 | G3: 74.08976335 | H3: 60.3266054 | I3: 60.64980499 | J3: 61.36365666 | K3: 74.80533378 | L3: 54.47884395 | M3: 69.07156222 | N3: =NW!N3+GW!N3 -> 800
A4: Umsatzerlöse | B4: =$N$4*B2 -> 688446.1156 | C4: =$N$4*C2 -> 646168.7194 | D4: 902545.3928 | E4: 807346.9382 | F4: 1070448.835 | G4: 883149.9791 | H4: 719093.1364 | I4: 722945.6755 | J4: 731454.7874 | K4: 891679.5786 | L4: 649387.8198 | M4: 823333.0217 | N4: =NW!N4+GW!N4 -> 9536000
A5: Umsatz / Stk. | B5: =$N$4/$N$3 -> 11920 | C5: =$N$4/$N$3 -> 11920 | D5: 11920 | E5: 11920 | F5: 11920 | G5: 11920 | H5: 11920 | I5: 11920 | J5: 11920 | K5: 11920 | L5: 11920 | M5: 11920 | N5: =N4/N3 -> 11920
A6: Einsatzwerte | B6: =$N$6*B2 -> 629023.4552 | C6: =$N$6*C2 -> 590395.1976 | D6: 824642.9293 | E6: 737661.451 | F6: 978053.9242 | G6: 806921.6148 | H6: 657025.2035 | I6: 660545.2139 | J6: 668319.8688 | K6: 814714.9889 | L6: 593336.4441 | M6: 752267.7089 | N6: =NW!N6+GW!N6 -> 8712908
A7: Bruttoertrag | B7: =$N$7*B2 -> 59422.66047 | C7: =$N$7*C2 -> 55773.52177 | D7: 77902.46356 | E7: 69685.48721 | F7: 92394.91116 | G7: 76228.36437 | H7: 62067.93286 | I7: 62400.46161 | J7: 63134.91861 | K7: 76964.58974 | L7: 56051.37578 | M7: 71065.31287 | N7: =N4-N6 -> 823092
A8: Bruttoertrag / Stk. | B8: =B7/B3 -> 1028.865 | C8: =C7/C3 -> 1028.865 | D8: 1028.865 | E8: 1028.865 | F8: 1028.865 | G8: 1028.865 | H8: 1028.865 | I8: 1028.865 | J8: 1028.865 | K8: 1028.865 | L8: 1028.865 | M8: 1028.865 | N8: =N7/N3 -> 1028.865
A10: Variable Kosten | B10: =$N$10*B2 -> 18786.43542 | C10: =$N$10*C2 -> 17632.7626 | D10: 24628.81314 | E10: 22031.02142 | F10: 29210.59102 | G10: 24099.54777 | H10: 19622.73657 | I10: 19727.86532 | J10: 19960.06342 | K10: 24332.30495 | L10: 17720.60596 | M10: 22467.2524 | N10: =NW!N10+GW!N10 -> 260220
A11: Fixum/Prov./Soz. | B11: =$N$11*B2 -> 16480.95558 | C11: =$N$11*C2 -> 15468.86201 | D11: 21606.35406 | E11: 19327.36451 | F11: 25625.85409 | G11: 21142.04038 | H11: 17214.62547 | I11: 17306.85277 | J11: 17510.55542 | K11: 21346.23349 | L11: 15545.92519 | M11: 19710.06103 | N11: =NW!N11+GW!N11 -> 228285.684
A12: Provisionen | B12: =$N$12*B2 -> 324.6648639 | C12: =$N$12*C2 -> 304.7272322 | D12: 425.6321163 | E12: 380.7373996 | F12: 504.8138373 | G12: 416.4854173 | H12: 339.1177173 | I12: 340.9345394 | J12: 344.9473584 | K12: 420.5078981 | L12: 306.2453304 | M12: 388.2762897 | N12: =NW!N12+GW!N12 -> 4497.09
A13: Fertigmachen | B13: =$N$13*B2 -> 944.3690284 | C13: =$N$13*C2 -> 886.3754358 | D13: 1238.057557 | E13: 1107.470035 | F13: 1468.377414 | G13: 1211.452093 | H13: 986.4087706 | I13: 991.6934524 | J13: 1003.365741 | K13: 1223.152485 | L13: 890.7912044 | M13: 1129.398784 | N13: =NW!N13+GW!N13 -> 13080.912
A14: Kulanz | B14: =$N$14*B2 -> 1036.445953 | C14: =$N$14*C2 -> 972.7979271 | D14: 1358.769406 | E14: 1215.449471 | F14: 1611.54568 | G14: 1329.569884 | H14: 1082.584612 | I14: 1088.384556 | J14: 1101.194904 | K14: 1342.411076 | L14: 977.6442376 | M14: 1239.516295 | N14: =NW!N14+GW!N14 -> 14356.314
A15: sonst. variable Kosten | B15: =$N$15*B2 -> 0 | C15: =$N$15*C2 -> 0 | D15: 0 | E15: 0 | F15: 0 | G15: 0 | H15: 0 | I15: 0 | J15: 0 | K15: 0 | L15: 0 | M15: 0 | N15: =NW!N15+GW!N15 -> 0
A16: Bruttoertrag II | B16: =$N$16*B2 -> 40636.22504 | C16: =$N$16*C2 -> 38140.75917 | D16: 53273.65042 | E16: 47654.46579 | F16: 63184.32014 | G16: 52128.81659 | H16: 42445.19629 | I16: 42672.59629 | J16: 43174.85519 | K16: 52632.28479 | L16: 38330.76981 | M16: 48598.06047 | N16: =N7-N10 -> 562872
A17: Direkte Kosten | B17: =$N$17/12 -> 25791.66667 | C17: =$N$17/12 -> 25791.66667 | D17: 25791.66667 | E17: 25791.66667 | F17: 25791.66667 | G17: 25791.66667 | H17: 25791.66667 | I17: 25791.66667 | J17: 25791.66667 | K17: 25791.66667 | L17: 25791.66667 | M17: 25791.66667 | N17: =N18+N19+N20+N21+N22 -> 309500
A18: Personalkosten | B18: =$N$18/12 -> 9416.666667 | C18: =$N$18/12 -> 9416.666667 | D18: 9416.666667 | E18: 9416.666667 | F18: 9416.666667 | G18: 9416.666667 | H18: 9416.666667 | I18: 9416.666667 | J18: 9416.666667 | K18: 9416.666667 | L18: 9416.666667 | M18: 9416.666667 | N18: =NW!N18+GW!N18 -> 113000
A19: Werbekosten | B19: =$N$19/12 -> 1683.333333 | C19: =$N$19/12 -> 1683.333333 | D19: 1683.333333 | E19: 1683.333333 | F19: 1683.333333 | G19: 1683.333333 | H19: 1683.333333 | I19: 1683.333333 | J19: 1683.333333 | K19: 1683.333333 | L19: 1683.333333 | M19: 1683.333333 | N19: =NW!N19+GW!N19 -> 20200
A20: Fahrzeugkosten | B20: =$N$20/12 -> 5125 | C20: =$N$20/12 -> 5125 | D20: 5125 | E20: 5125 | F20: 5125 | G20: 5125 | H20: 5125 | I20: 5125 | J20: 5125 | K20: 5125 | L20: 5125 | M20: 5125 | N20: =NW!N20+GW!N20 -> 61500
A21: Abschreibungen | B21: =$N$21/12 -> 9500 | C21: =$N$21/12 -> 9500 | D21: 9500 | E21: 9500 | F21: 9500 | G21: 9500 | H21: 9500 | I21: 9500 | J21: 9500 | K21: 9500 | L21: 9500 | M21: 9500 | N21: =NW!N21+GW!N21 -> 114000
A22: Gemeinkosten | B22: =$N$22/12 -> 66.66666667 | C22: =$N$22/12 -> 66.66666667 | D22: 66.66666667 | E22: 66.66666667 | F22: 66.66666667 | G22: 66.66666667 | H22: 66.66666667 | I22: 66.66666667 | J22: 66.66666667 | K22: 66.66666667 | L22: 66.66666667 | M22: 66.66666667 | N22: =NW!N22+GW!N22 -> 800
A23: Deckungsbeitrag | B23: =B16-B17 -> 14844.55837 | C23: =C16-C17 -> 12349.0925 | D23: 27481.98375 | E23: 21862.79913 | F23: 37392.65347 | G23: 26337.14993 | H23: 16653.52963 | I23: 16880.92963 | J23: 17383.18852 | K23: 26840.61813 | L23: 12539.10315 | M23: 22806.3938 | N23: =N16-N17 -> 253372
A24: Deckungsbeitrag / Stk. | B24: =B23/B3 -> 257.0239439 | C24: =C23/C3 -> 227.8061104 | D24: 362.9570866 | E24: 322.7912973 | F24: 416.3864864 | G24: 355.4762323 | H24: 276.0561367 | I24: 278.334442 | J24: 283.2814971 | K24: 358.8062077 | L24: 230.1646334 | M24: 330.1850004 | N24: =N23/N3 -> 316.715

Sheet NW
B1: Januar | C1: Februar | D1: März | E1: April | F1: Mai | G1: Juni | H1: Juli | I1: August | J1: September | K1: Oktober | L1: November | M1: Dezember | N1: Gesamt
A2: Saison | B2: 0.07219443327 | C2: 0.06776098148 | D2: 0.09464611922 | E2: 0.08466305979 | F2: 0.1122534433 | G2: 0.09261220419 | H2: 0.07540825675 | I2: 0.07581225624 | J2: 0.07670457083 | K2: 0.09350666722 | L2: 0.06809855493 | M2: 0.08633945278 | N2: =SUM(B2:M2) -> 1
A3: Neuwagen Stk. | B3: =$N$3*B2 -> 25.98999598 | C3: =$N$3*C2 -> 24.39395333 | D3: 34.07260292 | E3: 30.47870153 | F3: 40.41123959 | G3: 33.34039351 | H3: 27.14697243 | I3: 27.29241225 | J3: 27.6136455 | K3: 33.6624002 | L3: 24.51547978 | M3: 31.082203 | N3: =360 -> 360
A4: Umsatzerlöse | B4: =$N$4*B2 -> 418438.9352 | C4: =$N$4*C2 -> 392742.6487 | D4: 548568.907 | E4: 490707.0946 | F4: 650620.9574 | G4: 536780.3355 | H4: 437066.2561 | I4: 439407.8372 | J4: 444579.6925 | K4: 541964.6432 | L4: 394699.2244 | M4: 500423.4683 | N4: =N3*N5 -> 5796000
A5: Umsatz / Stk. | B5: =$N$5 -> 16100 | C5: =$N$5 -> 16100 | D5: 16100 | E5: 16100 | F5: 16100 | G5: 16100 | H5: 16100 | I5: 16100 | J5: 16100 | K5: 16100 | L5: 16100 | M5: 16100 | N5: 16100
A6: Einsatzwerte | B6: =$N$6*B2 -> 384126.9425 | C6: =$N$6*C2 -> 360537.7515 | D6: 503586.2566 | E6: 450469.1128 | F6: 597270.0389 | G6: 492764.348 | H6: 401226.8231 | I6: 403376.3945 | J6: 408124.1577 | K6: 497523.5425 | L6: 362333.888 | M6: 459388.7439 | N6: =(N4-N4*O6) -> 5320728 | O6: 0.082 | P6: (BE!!!)
A7: Bruttoertrag | B7: =$N$7*B2 -> 34311.99269 | C7: =$N$7*C2 -> 32204.89719 | D7: 44982.65037 | E7: 40237.98175 | F7: 53350.91851 | G7: 44015.98751 | H7: 35839.433 | I7: 36031.44265 | J7: 36455.53479 | K7: 44441.10074 | L7: 32365.3364 | M7: 41034.7244 | N7: =N4-N6+R6 -> 475272
A8: Bruttoertrag / Stk. | B8: =$N$8 -> 1320.2 | C8: =$N$8 -> 1320.2 | D8: 1320.2 | E8: 1320.2 | F8: 1320.2 | G8: 1320.2 | H8: 1320.2 | I8: 1320.2 | J8: 1320.2 | K8: 1320.2 | L8: 1320.2 | M8: 1320.2 | N8: =N7/N3 -> 1320.2
A10: Variable Kosten | B10: =$N$10*B2 -> 10590.92336 | C10: =$N$10*C2 -> 9940.535983 | D10: 13884.58569 | E10: 12420.07087 | F10: 16467.58013 | G10: 13586.21035 | H10: 11062.39127 | I10: 11121.65799 | J10: 11252.56054 | K10: 13717.42808 | L10: 9990.058009 | M10: 12665.99772 | N10: =N3*R10 -> 146700 | Q10: pro Fzg. | R10: 407.5
A11: Fixum/Prov./Soz. | B11: =$N$11*B2 -> 10275.31384 | C11: =$N$11*C2 -> 9644.308011 | D11: 13470.82504 | E11: 12049.95276 | F11: 15976.84624 | G11: 13181.34129 | H11: 10732.73201 | I11: 10790.23258 | J11: 10917.23424 | K11: 13308.64872 | L11: 9692.35428 | M11: 12288.55099 | N11: =N10*O11 -> 142328.34 | O11: 0.9702 | P11: =SUM(O11:O14) -> 1
A12: Provisionen | B12: =$N$12*B2 -> 185.3411588 | C12: =$N$12*C2 -> 173.9593797 | D12: 242.9802496 | E12: 217.3512403 | F12: 288.1826523 | G12: 237.7586812 | H12: 193.5918471 | I12: 194.6290148 | J12: 196.9198095 | K12: 240.0549914 | L12: 174.8260152 | M12: 221.6549602 | N12: =N10*O12 -> 2567.25 | O12: 0.0175
A13: Fertigmachen | B13: =$N$13*B2 -> -343.1459169 | C13: =$N$13*C2 -> -322.0733659 | D13: -449.8605763 | E13: -402.4102962 | F13: -533.5495963 | G13: -440.1932155 | H13: -358.421477 | I13: -360.3417189 | J13: -364.5829615 | K13: -444.4446698 | L13: -323.6778795 | M13: -410.3783262 | N13: =N10*O13 -> -4753.08 | O13: -0.0324
A14: Kulanz | B14: =$N$14*B2 -> 473.4142742 | C14: =$N$14*C2 -> 444.3419584 | D14: 620.6409803 | E14: 555.177168 | F14: 736.1008319 | G14: 607.3036028 | H14: 494.4888896 | I14: 497.1381122 | J14: 502.9894562 | K14: 613.1690353 | L14: 446.555593 | M14: 566.1700982 | N14: =N10*O14 -> 6557.49 | O14: 0.0447
A15: sonst. variable Kosten | B15: =$N$15*B2 -> 0 | C15: =$N$15*C2 -> 0 | D15: 0 | E15: 0 | F15: 0 | G15: 0 | H15: 0 | I15: 0 | J15: 0 | K15: 0 | L15: 0 | M15: 0 | N15: 0
A16: Bruttoertrag II | B16: =$N$16*B2 -> 23721.06933 | C16: =$N$16*C2 -> 22264.36121 | D16: 31098.06468 | E16: 27817.91088 | F16: 36883.33837 | G16: 30429.77715 | H16: 24777.04174 | I16: 24909.78466 | J16: 25202.97425 | K16: 30723.67266 | L16: 22375.27839 | M16: 28368.72668 | N16: =N7-N10 -> 328572
A17: Direkte Kosten | B17: =$N$17/12 -> 21941.66667 | C17: =$N$17/12 -> 21941.66667 | D17: 21941.66667 | E17: 21941.66667 | F17: 21941.66667 | G17: 21941.66667 | H17: 21941.66667 | I17: 21941.66667 | J17: 21941.66667 | K17: 21941.66667 | L17: 21941.66667 | M17: 21941.66667 | N17: =N18+N19+N20+N21+N22 -> 263300
A18: Personalkosten | B18: =$N$18/12 -> 5875 | C18: =$N$18/12 -> 5875 | D18: 5875 | E18: 5875 | F18: 5875 | G18: 5875 | H18: 5875 | I18: 5875 | J18: 5875 | K18: 5875 | L18: 5875 | M18: 5875 | N18: 70500
A19: Werbekosten | B19: =$N$19/12 -> 1625 | C19: =$N$19/12 -> 1625 | D19: 1625 | E19: 1625 | F19: 1625 | G19: 1625 | H19: 1625 | I19: 1625 | J19: 1625 | K19: 1625 | L19: 1625 | M19: 1625 | N19: 19500
A20: Fahrzeugkosten | B20: =$N$20/12 -> 4875 | C20: 4875 | D20: 4875 | E20: 4875 | F20: 4875 | G20: 4875 | H20: 4875 | I20: 4875 | J20: 4875 | K20: 4875 | L20: 4875 | M20: =$N$20/12 -> 4875 | N20: 58500
A21: Abschreibungen | B21: =$N$21/12 -> 9500 | C21: 9500 | D21: 9500 | E21: 9500 | F21: 9500 | G21: 9500 | H21: 9500 | I21: 9500 | J21: 9500 | K21: 9500 | L21: 9500 | M21: =$N$21/12 -> 9500 | N21: 114000
A22: Gemeinkosten | B22: =$N$22/12 -> 66.66666667 | C22: =$N$22/12 -> 66.66666667 | D22: 66.66666667 | E22: 66.66666667 | F22: 66.66666667 | G22: 66.66666667 | H22: 66.66666667 | I22: 66.66666667 | J22: 66.66666667 | K22: 66.66666667 | L22: 66.66666667 | M22: 66.66666667 | N22: 800
A23: Deckungsbeitrag | B23: =B16-B17 -> 1779.40266 | C23: =C16-C17 -> 322.6945402 | D23: 9156.398017 | E23: 5876.244216 | F23: 14941.67171 | G23: 8488.110487 | H23: 2835.37507 | I23: 2968.11799 | J23: 3261.307579 | K23: 8782.005997 | L23: 433.6117247 | M23: 6427.060012 | N23: =N16-N17 -> 65272 | P23: DB in % vom Umsatz
A24: Deckungsbeitrag / Stk. | B24: =$N$24 -> 181.3111111 | C24: =$N$24 -> 181.3111111 | D24: 181.3111111 | E24: 181.3111111 | F24: 181.3111111 | G24: 181.3111111 | H24: 181.3111111 | I24: 181.3111111 | J24: 181.3111111 | K24: 181.3111111 | L24: 181.3111111 | M24: 181.3111111 | N24: =N23/N3 -> 181.3111111 | P24: =N23/N4 -> 0.0112615597
P25: Ziel > 3%

Sheet GW
B1: Januar | C1: Februar | D1: März | E1: April | F1: Mai | G1: Juni | H1: Juli | I1: August | J1: September | K1: Oktober | L1: November | M1: Dezember | N1: Gesamt
A2: Saison | B2: 0.07219443327 | C2: 0.06776098148 | D2: 0.09464611922 | E2: 0.08466305979 | F2: 0.1122534433 | G2: 0.09261220419 | H2: 0.07540825675 | I2: 0.07581225624 | J2: 0.07670457083 | K2: 0.09350666722 | L2: 0.06809855493 | M2: 0.08633945278 | N2: =SUM(B2:M2) -> 1
A3: GW Stk. | B3: =$N$3*B2 -> 31.76555064 | C3: =$N$3*C2 -> 29.81483185 | D3: 41.64429246 | E3: 37.25174631 | F3: 49.39151505 | G3: 40.74936984 | H3: 33.17963297 | I3: 33.35739275 | J3: 33.75001116 | K3: 41.14293358 | L3: 29.96336417 | M3: 37.98935922 | N3: 440 | Q3: GW pro NW | R3: =N3/NW!N3 -> 1.222222222
A4: Umsatzerlöse | B4: =$N$4*B2 -> 270007.1804 | C4: =$N$4*C2 -> 253426.0707 | D4: 353976.4859 | E4: 316639.8436 | F4: 419827.878 | G4: 346369.6437 | H4: 282026.8802 | I4: 283537.8383 | J4: 286875.0949 | K4: 349714.9354 | L4: 254688.5954 | M4: 322909.5534 | N4: =N3*N5 -> 3740000 | Q4: inkl. Export!!!
A5: Umsatz / Stk. | B5: =$N$5 -> 8500 | C5: =$N$5 -> 8500 | D5: 8500 | E5: 8500 | F5: 8500 | G5: 8500 | H5: 8500 | I5: 8500 | J5: 8500 | K5: 8500 | L5: 8500 | M5: 8500 | N5: 8500
A6: Einsatzwerte | B6: =$N$6*B2 -> 244896.5126 | C6: =$N$6*C2 -> 229857.4462 | D6: 321056.6727 | E6: 287192.3382 | F6: 380783.8853 | G6: 314157.2668 | H6: 255798.3804 | I6: 257168.8194 | J6: 260195.7111 | K6: 317191.4464 | L6: 231002.5561 | M6: 292878.9649 | N6: =(N4-N4*O6) -> 3392180 | O6: 0.093 | P6: (BE!!!)
A7: Bruttoertrag | B7: =$N$7*B2 -> 25110.66778 | C7: =$N$7*C2 -> 23568.62458 | D7: 32919.81319 | E7: 29447.50546 | F7: 39043.99265 | G7: 32212.37686 | H7: 26228.49986 | I7: 26369.01897 | J7: 26679.38382 | K7: 32523.48899 | L7: 23686.03938 | M7: 30030.58847 | N7: =N4-N6 -> 347820
A8: Bruttoertrag / Stk. | B8: =$N$8 -> 790.5 | C8: =$N$8 -> 790.5 | D8: 790.5 | E8: 790.5 | F8: 790.5 | G8: 790.5 | H8: 790.5 | I8: 790.5 | J8: 790.5 | K8: 790.5 | L8: 790.5 | M8: 790.5 | N8: =N7/N3 -> 790.5
A10: Variable Kosten | B10: =$N$10*B2 -> 8195.512064 | C10: =$N$10*C2 -> 7692.226618 | D10: 10744.22745 | E10: 9610.950548 | F10: 12743.01088 | G10: 10513.33742 | H10: 8560.345306 | I10: 8606.207328 | J10: 8707.50288 | K10: 10614.87686 | L10: 7730.547956 | M10: 9801.25468 | N10: =N3*R10 -> 113520 | Q10: pro Fzg. | R10: 258
A11: Fixum/Prov./Soz. | B11: =$N$11*B2 -> 6205.641735 | C11: =$N$11*C2 -> 5824.553995 | D11: 8135.529028 | E11: 7277.411755 | F11: 9649.007841 | G11: 7960.699094 | H11: 6481.893466 | I11: 6516.620189 | J11: 6593.321181 | K11: 8037.584761 | L11: 5853.570912 | M11: 7421.510043 | N11: =(N10*O11) -> 85957.344 | O11: 0.7572 | P11: =SUM(O11:O15) -> 1
A12: Provisionen | B12: =$N$12*B2 -> 139.3237051 | C12: =$N$12*C2 -> 130.7678525 | D12: 182.6518667 | E12: 163.3861593 | F12: 216.631185 | G12: 178.7267361 | H12: 145.5258702 | I12: 146.3055246 | J12: 148.027549 | K12: 180.4529067 | L12: 131.4193153 | M12: 166.6213296 | N12: =N10*O12 -> 1929.84 | O12: 0.017
A13: Fertigmachen | B13: =$N$13*B2 -> 1287.514945 | C13: =$N$13*C2 -> 1208.448802 | D13: 1687.918133 | E13: 1509.880331 | F13: 2001.92701 | G13: 1651.645309 | H13: 1344.830248 | I13: 1352.035171 | J13: 1367.948702 | K13: 1667.597155 | L13: 1214.469084 | M13: 1539.77711 | N13: =N10*O13 -> 17833.992 | O13: 0.1571
A14: Kulanz | B14: =$N$14*B2 -> 563.0316788 | C14: =$N$14*C2 -> 528.4559686 | D14: 738.1284261 | E14: 660.2723026 | F14: 875.4448477 | G14: 722.2662807 | H14: 588.0957225 | I14: 591.2464435 | J14: 598.2054479 | K14: 729.2420405 | L14: 531.0886446 | M14: 673.3461965 | N14: =N10*O14 -> 7798.824 | O14: 0.0687
A15: sonst. variable Kosten | B15: =$N$15*B2 -> 0 | C15: =$N$15*C2 -> 0 | D15: 0 | E15: 0 | F15: 0 | G15: 0 | H15: 0 | I15: 0 | J15: 0 | K15: 0 | L15: 0 | M15: 0 | N15: =N10*O15 -> 0 | O15: 0
A16: Bruttoertrag II | B16: =$N$16*B2 -> 16915.15571 | C16: =$N$16*C2 -> 15876.39796 | D16: 22175.58573 | E16: 19836.55491 | F16: 26300.98177 | G16: 21699.03944 | H16: 17668.15456 | I16: 17762.81164 | J16: 17971.88094 | K16: 21908.61213 | L16: 15955.49142 | M16: 20229.33379 | N16: =N7-N10 -> 234300
A17: Direkte Kosten | B17: =$N$17/12 -> 3850 | C17: =$N$17/12 -> 3850 | D17: 3850 | E17: 3850 | F17: 3850 | G17: 3850 | H17: 3850 | I17: 3850 | J17: 3850 | K17: 3850 | L17: 3850 | M17: 3850 | N17: =SUM(N18:N22) -> 46200
A18: Personalkosten | B18: =$N$18/12 -> 3541.666667 | C18: 3541.666667 | D18: 3541.666667 | E18: 3541.666667 | F18: 3541.666667 | G18: 3541.666667 | H18: 3541.666667 | I18: 3541.666667 | J18: 3541.666667 | K18: 3541.666667 | L18: 3541.666667 | M18: =$N$18/12 -> 3541.666667 | N18: 42500 | S18: 43000
A19: Werbekosten | B19: =$N$19/12 -> 58.33333333 | C19: =$N$19/12 -> 58.33333333 | D19: 58.33333333 | E19: 58.33333333 | F19: 58.33333333 | G19: 58.33333333 | H19: 58.33333333 | I19: 58.33333333 | J19: 58.33333333 | K19: 58.33333333 | L19: 58.33333333 | M19: 58.33333333 | N19: 700 | S19: 3000
A20: Fahrzeugkosten | B20: =$N$20/12 -> 250 | C20: 250 | D20: 250 | E20: 250 | F20: 250 | G20: 250 | H20: 250 | I20: 250 | J20: 250 | K20: 250 | L20: 250 | M20: =$N$20/12 -> 250 | N20: 3000 | S20: 500
A21: Abschreibungen | B21: =$N$21/12 -> 0 | C21: =$N$21/12 -> 0 | D21: 0 | E21: 0 | F21: 0 | G21: 0 | H21: 0 | I21: 0 | J21: 0 | K21: 0 | L21: 0 | M21: 0 | N21: =(S21/10)*12 -> 0
A22: Gemeinkosten | B22: =$N$22/12 -> 0 | C22: =$N$22/12 -> 0 | D22: 0 | E22: 0 | F22: 0 | G22: 0 | H22: 0 | I22: 0 | J22: 0 | K22: 0 | L22: 0 | M22: 0 | N22: 0 | P22: Gebrauchtwagen KPIs
A23: Deckungsbeitrag | B23: =B16-B17 -> 13065.15571 | C23: =C16-C17 -> 12026.39796 | D23: 18325.58573 | E23: 15986.55491 | F23: 22450.98177 | G23: 17849.03944 | H23: 13818.15456 | I23: 13912.81164 | J23: 14121.88094 | K23: 18058.61213 | L23: 12105.49142 | M23: 16379.33379 | N23: =N16-N17 -> 188100 | P23: DB in % vom Umsatz | S23: Umschlag GW | U23: Lagerdauer
A24: Deckungsbeitrag / Stk. | B24: =B23/B3 -> 411.2995195 | C24: =C23/C3 -> 403.369639 | D24: 440.0503563 | E24: 429.1491405 | F24: 454.5513889 | G24: 438.0200114 | H24: 416.4649612 | I24: 417.0833057 | J24: 418.4259637 | K24: 438.923785 | L24: 404.0097551 | M24: 431.1558321 | N24: =N23/N3 -> 427.5 | P24: =N23/N4 -> 0.05029411765 | S24: =(N4/S26) -> 5.088435374 | U24: =360/S24 -> 70.7486631
P25: Ziel > 3% | S25: Ziel: 6 - 8 | U25: Ziel: 45 Tage
S26: 735000
S27: VK vs. VK (!!!)

Sheet Aftersales
B1: Januar | C1: Februar | D1: März | E1: April | F1: Mai | G1: Juni | H1: Juli | I1: August | J1: September | K1: Oktober | L1: November | M1: Dezember | N1: Gesamt
A2: Saison | B2: 0.07242395954 | C2: 0.06394698535 | D2: 0.08797711824 | E2: 0.09373032697 | F2: 0.0784723441 | G2: 0.08604305758 | H2: 0.07640740123 | I2: 0.07947847958 | J2: 0.07253546096 | K2: 0.1029396894 | L2: 0.1004109922 | M2: 0.08563418483 | N2: =SUM(B2:M2) -> 1
A3: verk. Stunden | B3: =$N$3*B2 -> 1334.773574 | C3: =$N$3*C2 -> 1178.54294 | D3: 1621.418289 | E3: 1727.449926 | F3: 1446.245302 | G3: 1585.773551 | H3: 1408.188405 | I3: 1464.788379 | J3: 1336.828545 | K3: 1897.178476 | L3: 1850.574586 | M3: 1578.238027 | N3: =ME!N3+KA!N3+LA!N3+'T&Z'!N3 -> 18430
A4: Umsatzerlöse | B4: =$N$4*B2 -> 252440.2205 | C4: =$N$4*C2 -> 222892.9651 | D4: 306652.1531 | E4: 326705.4792 | F4: 273522.4085 | G4: 299910.8108 | H4: 266324.8646 | I4: 277029.3842 | J4: 252828.8687 | K4: 358805.5398 | L4: 349991.5383 | M4: 298485.6481 | N4: =ME!N4+KA!N4+LA!N4+'T&Z'!N4+MW!N3 -> 3485589.881
A5: Umsatz / Stk. | B5: =B4/B3 -> 189.1258753 | C5: =C4/C3 -> 189.1258753 | D5: 189.1258753 | E5: 189.1258753 | F5: 189.1258753 | G5: 189.1258753 | H5: 189.1258753 | I5: 189.1258753 | J5: 189.1258753 | K5: 189.1258753 | L5: 189.1258753 | M5: 189.1258753 | N5: 189.1258753
A6: Einsatzwerte | B6: =$N$6*B2 -> 113734.6585 | C6: =$N$6*C2 -> 100422.4097 | D6: 138159.3545 | E6: 147194.1992 | F6: 123233.0477 | G6: 135122.1037 | H6: 119990.2593 | I6: 124813.0838 | J6: 113909.7604 | K6: 161656.5912 | L6: 157685.5225 | M6: 134480.0095 | N6: =ME!N6+KA!N6+LA!N6+'T&Z'!N5+MW!N4 -> 1570401
A7: Bruttoertrag | B7: =$N$7*B2 -> 138705.562 | C7: =$N$7*C2 -> 122470.5553 | D7: 168492.7986 | E7: 179511.28 | F7: 150289.3609 | G7: 164788.7072 | H7: 146334.6053 | I7: 152216.3004 | J7: 138919.1083 | K7: 197148.9486 | L7: 192306.0157 | M7: 164005.6386 | N7: =N4-N6 -> 1915188.881
A8: Bruttoertrag / Stk. | B8: =B7/B3 -> 103.9169225 | C8: =C7/C3 -> 103.9169225 | D8: 103.9169225 | E8: 103.9169225 | F8: 103.9169225 | G8: 103.9169225 | H8: 103.9169225 | I8: 103.9169225 | J8: 103.9169225 | K8: 103.9169225 | L8: 103.9169225 | M8: 103.9169225 | N8: =N7/N3 -> 103.9169225
A10: Variable Kosten | B10: =$N$10*B2 -> 3230.108596 | C10: =$N$10*C2 -> 2852.035547 | D10: 3923.779473 | E10: 4180.372583 | F10: 3499.866547 | G10: 3837.520368 | H10: 3407.770095 | I10: 3544.740189 | J10: 3235.081559 | K10: 4591.110148 | L10: 4478.330251 | M10: 3819.284644 | N10: =SUM(N11:N15) -> 44600
A11: Fixum/Prov./Soz. | B11: =$N$11*B2 -> 0 | C11: =$N$11*C2 -> 0 | D11: 0 | E11: 0 | F11: 0 | G11: 0 | H11: 0 | I11: 0 | J11: 0 | K11: 0 | L11: 0 | M11: 0 | N11: =ME!N11+KA!N11+LA!N11+'T&Z'!N9+MW!N8 -> 0
A12: Provisionen | B12: =$N$12*B2 -> 0 | C12: =$N$12*C2 -> 0 | D12: 0 | E12: 0 | F12: 0 | G12: 0 | H12: 0 | I12: 0 | J12: 0 | K12: 0 | L12: 0 | M12: 0 | N12: =ME!N12+KA!N12+LA!N12+'T&Z'!N10+MW!N9 -> 0
A13: Fertigmachen | B13: =$N$13*B2 -> 0 | C13: =$N$13*C2 -> 0 | D13: 0 | E13: 0 | F13: 0 | G13: 0 | H13: 0 | I13: 0 | J13: 0 | K13: 0 | L13: 0 | M13: 0 | N13: =ME!N13+KA!N13+LA!N13+'T&Z'!N11+MW!N10 -> 0
A14: Kulanz | B14: =$N$14*B2 -> 3230.108596 | C14: =$N$14*C2 -> 2852.035547 | D14: 3923.779473 | E14: 4180.372583 | F14: 3499.866547 | G14: 3837.520368 | H14: 3407.770095 | I14: 3544.740189 | J14: 3235.081559 | K14: 4591.110148 | L14: 4478.330251 | M14: 3819.284644 | N14: =ME!N14+KA!N14+LA!N14+'T&Z'!N12+MW!N11 -> 44600
A15: sonst. variable Kosten | B15: =$N$15*B2 -> 0 | C15: =$N$15*C2 -> 0 | D15: 0 | E15: 0 | F15: 0 | G15: 0 | H15: 0 | I15: 0 | J15: 0 | K15: 0 | L15: 0 | M15: 0 | N15: =ME!N15+KA!N15+LA!N15+'T&Z'!N13+MW!N12 -> 0
A16: Bruttoertrag II | B16: =$N$16*B2 -> 135475.4534 | C16: =$N$16*C2 -> 119618.5198 | D16: 164569.0192 | E16: 175330.9074 | F16: 146789.4943 | G16: 160951.1868 | H16: 142926.8352 | I16: 148671.5602 | J16: 135684.0267 | K16: 192557.8384 | L16: 187827.6855 | M16: 160186.354 | N16: =N7-N10 -> 1870588.881
A17: Direkte Kosten | B17: =$N$17/12 -> 70883.33333 | C17: =$N$17/12 -> 70883.33333 | D17: 70883.33333 | E17: 70883.33333 | F17: 70883.33333 | G17: 70883.33333 | H17: 70883.33333 | I17: 70883.33333 | J17: 70883.33333 | K17: 70883.33333 | L17: 70883.33333 | M17: 70883.33333 | N17: =SUM(N18:N22) -> 850600
A18: Personalkosten | B18: =$N$18/12 -> 58364.52167 | C18: =$N$18/12 -> 58364.52167 | D18: 58364.52167 | E18: 58364.52167 | F18: 58364.52167 | G18: 58364.52167 | H18: 58364.52167 | I18: 58364.52167 | J18: 58364.52167 | K18: 58364.52167 | L18: 58364.52167 | M18: 58364.52167 | N18: =ME!N18+KA!N18+LA!N18+'T&Z'!N16+MW!N15 -> 700374.26
A19: Werbekosten | B19: =$N$19/12 -> 981.3541667 | C19: =$N$19/12 -> 981.3541667 | D19: 981.3541667 | E19: 981.3541667 | F19: 981.3541667 | G19: 981.3541667 | H19: 981.3541667 | I19: 981.3541667 | J19: 981.3541667 | K19: 981.3541667 | L19: 981.3541667 | M19: 981.3541667 | N19: =ME!N19+KA!N19+LA!N19+'T&Z'!N17+MW!N16 -> 11776.25
A20: Fahrzeugkosten | B20: =$N$20/12 -> 3183.1825 | C20: =$N$20/12 -> 3183.1825 | D20: 3183.1825 | E20: 3183.1825 | F20: 3183.1825 | G20: 3183.1825 | H20: 3183.1825 | I20: 3183.1825 | J20: 3183.1825 | K20: 3183.1825 | L20: 3183.1825 | M20: 3183.1825 | N20: =ME!N20+KA!N20+LA!N20+'T&Z'!N18+MW!N17 -> 38198.19
A21: Abschreibungen | B21: =$N$21/12 -> 3624.833333 | C21: =$N$21/12 -> 3624.833333 | D21: 3624.833333 | E21: 3624.833333 | F21: 3624.833333 | G21: 3624.833333 | H21: 3624.833333 | I21: 3624.833333 | J21: 3624.833333 | K21: 3624.833333 | L21: 3624.833333 | M21: 3624.833333 | N21: =ME!N21+KA!N21+LA!N21+'T&Z'!N19+MW!N18 -> 43498
A22: Gemeinkosten | B22: =$N$22/12 -> 4729.441667 | C22: =$N$22/12 -> 4729.441667 | D22: 4729.441667 | E22: 4729.441667 | F22: 4729.441667 | G22: 4729.441667 | H22: 4729.441667 | I22: 4729.441667 | J22: 4729.441667 | K22: 4729.441667 | L22: 4729.441667 | M22: 4729.441667 | N22: =ME!N22+KA!N22+LA!N22+'T&Z'!N20+MW!N19 -> 56753.3
A23: Deckungsbeitrag | B23: =B16-B17 -> 64592.1201 | C23: =C16-C17 -> 48735.18644 | D23: 93685.68582 | E23: 104447.5741 | F23: 75906.16101 | G23: 90067.85345 | H23: 72043.50184 | I23: 77788.22684 | J23: 64800.69341 | K23: 121674.5051 | L23: 116944.3522 | M23: 89303.02065 | N23: =N16-N17 -> 1019988.881
A24: Deckungsbeitrag / Stk. | B24: =B23/B3 -> 48.39181817 | C24: =C23/C3 -> 41.35206685 | D24: 57.78008454 | E24: 60.4634453 | F24: 52.48498364 | G24: 56.79742444 | H24: 51.16041404 | I24: 53.10543692 | J24: 48.47345131 | K24: 64.13445369 | L24: 63.19353624 | M24: 56.5840001 | N24: =N23/N3 -> 55.34394362

Sheet Service
B1: Januar | C1: Februar | D1: März | E1: April | F1: Mai | G1: Juni | H1: Juli | I1: August | J1: September | K1: Oktober | L1: November | M1: Dezember | N1: Gesamt
A2: Saison | B2: 0.07242395954 | C2: 0.06394698535 | D2: 0.08797711824 | E2: 0.09373032697 | F2: 0.0784723441 | G2: 0.08604305758 | H2: 0.07640740123 | I2: 0.07947847958 | J2: 0.07253546096 | K2: 0.1029396894 | L2: 0.1004109922 | M2: 0.08563418483 | N2: =SUM(B2:M2) -> 1
A3: verk. Stunden | B3: =$N$3*B2 -> 1334.773574 | C3: =$N$3*C2 -> 1178.54294 | D3: 1621.418289 | E3: 1727.449926 | F3: 1446.245302 | G3: 1585.773551 | H3: 1408.188405 | I3: 1464.788379 | J3: 1336.828545 | K3: 1897.178476 | L3: 1850.574586 | M3: 1578.238027 | N3: =ME!N3+KA!N3+LA!N3 -> 18430
A4: Umsatzerlöse | B4: =$N$4*B2 -> 118313.1057 | C4: =$N$4*C2 -> 104464.9655 | D4: 143721.0303 | E4: 153119.5774 | F4: 128193.8574 | G4: 140561.5134 | H4: 124820.5289 | I4: 129837.4987 | J4: 118495.2564 | K4: 168164.1604 | L4: 164033.2343 | M4: 139893.5715 | N4: =ME!N4+KA!N4+LA!N4 -> 1633618.3
A5: Umsatz / Stk. | B5: =B4/B3 -> 88.63908302 | C5: =C4/C3 -> 88.63908302 | D5: 88.63908302 | E5: 88.63908302 | F5: 88.63908302 | G5: 88.63908302 | H5: 88.63908302 | I5: 88.63908302 | J5: 88.63908302 | K5: 88.63908302 | L5: 88.63908302 | M5: 88.63908302 | N5: 88.63908302
A6: Einsatzwerte | B6: =$N$6*B2 -> 32080.86862 | C6: =$N$6*C2 -> 28325.91381 | D6: 38970.28538 | E6: 41518.72287 | F6: 34760.05699 | G6: 38113.57516 | H6: 33845.37128 | I6: 35205.73409 | J6: 32130.25921 | K6: 45598.09589 | L6: 44477.98585 | M6: 37932.46117 | N6: =ME!N6+KA!N6+LA!N6 -> 442959.3303
A7: Bruttoertrag | B7: =$N$7*B2 -> 86232.23705 | C7: =$N$7*C2 -> 76139.0517 | D7: 104750.745 | E7: 111600.8545 | F7: 93433.80038 | G7: 102447.9383 | H7: 90975.15763 | I7: 94631.76461 | J7: 86364.99721 | K7: 122566.0646 | L7: 119555.2485 | M7: 101961.1103 | N7: =N4-N6 -> 1190658.97 | O7: =N7/N4 -> 0.7288477178
A8: Bruttoertrag / Stk. | B8: =B7/B3 -> 64.60439336 | C8: =C7/C3 -> 64.60439336 | D8: 64.60439336 | E8: 64.60439336 | F8: 64.60439336 | G8: 64.60439336 | H8: 64.60439336 | I8: 64.60439336 | J8: 64.60439336 | K8: 64.60439336 | L8: 64.60439336 | M8: 64.60439336 | N8: =N7/N3 -> 64.60439336
A10: Variable Kosten | B10: =$N$10*B2 -> 1817.841385 | C10: =$N$10*C2 -> 1605.069332 | D10: 2208.225668 | E10: 2352.631207 | F10: 1969.655837 | G10: 2159.680745 | H10: 1917.825771 | I10: 1994.909837 | J10: 1820.64007 | K10: 2583.786205 | L10: 2520.315904 | M10: 2149.418039 | N10: =SUM(N11:N15) -> 25100
A11: Fixum/Prov./Soz. | B11: =$N$11*B2 -> 0 | C11: =$N$11*C2 -> 0 | D11: 0 | E11: 0 | F11: 0 | G11: 0 | H11: 0 | I11: 0 | J11: 0 | K11: 0 | L11: 0 | M11: 0 | N11: =ME!N11+KA!N11+LA!N11 -> 0
A12: Provisionen | B12: =$N$12*B2 -> 0 | C12: =$N$12*C2 -> 0 | D12: 0 | E12: 0 | F12: 0 | G12: 0 | H12: 0 | I12: 0 | J12: 0 | K12: 0 | L12: 0 | M12: 0 | N12: =ME!N12+KA!N12+LA!N12 -> 0
A13: Fertigmachen | B13: =$N$13*B2 -> 0 | C13: =$N$13*C2 -> 0 | D13: 0 | E13: 0 | F13: 0 | G13: 0 | H13: 0 | I13: 0 | J13: 0 | K13: 0 | L13: 0 | M13: 0 | N13: =ME!N13+KA!N13+LA!N13 -> 0
A14: Kulanz | B14: =$N$14*B2 -> 1817.841385 | C14: =$N$14*C2 -> 1605.069332 | D14: 2208.225668 | E14: 2352.631207 | F14: 1969.655837 | G14: 2159.680745 | H14: 1917.825771 | I14: 1994.909837 | J14: 1820.64007 | K14: 2583.786205 | L14: 2520.315904 | M14: 2149.418039 | N14: =ME!N14+KA!N14+LA!N14 -> 25100
A15: sonst. variable Kosten | B15: =$N$15*B2 -> 0 | C15: =$N$15*C2 -> 0 | D15: 0 | E15: 0 | F15: 0 | G15: 0 | H15: 0 | I15: 0 | J15: 0 | K15: 0 | L15: 0 | M15: 0 | N15: =ME!N15+KA!N15+LA!N15 -> 0
A16: Bruttoertrag II | B16: =$N$16*B2 -> 84414.39567 | C16: =$N$16*C2 -> 74533.98236 | D16: 102542.5193 | E16: 109248.2233 | F16: 91464.14454 | G16: 100288.2575 | H16: 89057.33186 | I16: 92636.85477 | J16: 84544.35714 | K16: 119982.2783 | L16: 117034.9326 | M16: 99811.69225 | N16: =N7-N10 -> 1165558.97
A17: Direkte Kosten | B17: =$N$17/12 -> 43633.33333 | C17: =$N$17/12 -> 43633.33333 | D17: 43633.33333 | E17: 43633.33333 | F17: 43633.33333 | G17: 43633.33333 | H17: 43633.33333 | I17: 43633.33333 | J17: 43633.33333 | K17: 43633.33333 | L17: 43633.33333 | M17: 43633.33333 | N17: =SUM(N18:N22) -> 523600
A18: Personalkosten | B18: =$N$18/12 -> 37230.555 | C18: =$N$18/12 -> 37230.555 | D18: 37230.555 | E18: 37230.555 | F18: 37230.555 | G18: 37230.555 | H18: 37230.555 | I18: 37230.555 | J18: 37230.555 | K18: 37230.555 | L18: 37230.555 | M18: 37230.555 | N18: =ME!N18+KA!N18+LA!N18 -> 446766.66
A19: Werbekosten | B19: =$N$19/12 -> 1106.895833 | C19: =$N$19/12 -> 1106.895833 | D19: 1106.895833 | E19: 1106.895833 | F19: 1106.895833 | G19: 1106.895833 | H19: 1106.895833 | I19: 1106.895833 | J19: 1106.895833 | K19: 1106.895833 | L19: 1106.895833 | M19: 1106.895833 | N19: =ME!N19+KA!N19+LA!N19 -> 13282.75
A20: Fahrzeugkosten | B20: =$N$20/12 -> 690.6575 | C20: =$N$20/12 -> 690.6575 | D20: 690.6575 | E20: 690.6575 | F20: 690.6575 | G20: 690.6575 | H20: 690.6575 | I20: 690.6575 | J20: 690.6575 | K20: 690.6575 | L20: 690.6575 | M20: 690.6575 | N20: =ME!N20+KA!N20+LA!N20 -> 8287.89
A21: Abschreibungen | B21: =$N$21/12 -> 0 | C21: =$N$21/12 -> 0 | D21: 0 | E21: 0 | F21: 0 | G21: 0 | H21: 0 | I21: 0 | J21: 0 | K21: 0 | L21: 0 | M21: 0 | N21: =ME!N21+KA!N21+LA!N21 -> 0
A22: Gemeinkosten | B22: =$N$22/12 -> 4605.225 | C22: =$N$22/12 -> 4605.225 | D22: 4605.225 | E22: 4605.225 | F22: 4605.225 | G22: 4605.225 | H22: 4605.225 | I22: 4605.225 | J22: 4605.225 | K22: 4605.225 | L22: 4605.225 | M22: 4605.225 | N22: =ME!N22+KA!N22+LA!N22 -> 55262.7
A23: Deckungsbeitrag | B23: =B16-B17 -> 40781.06233 | C23: =C16-C17 -> 30900.64903 | D23: 58909.18596 | E23: 65614.89 | F23: 47830.81121 | G23: 56654.92421 | H23: 45423.99853 | I23: 49003.52144 | J23: 40911.02381 | K23: 76348.94501 | L23: 73401.59926 | M23: 56178.35891 | N23: =N16-N17 -> 641958.9697
A24: Deckungsbeitrag / Stk. | B24: =B23/B3 -> 30.55279421 | C24: =C23/C3 -> 26.21936629 | D24: 36.33188694 | E24: 37.9836712 | F24: 33.07240559 | G24: 35.7269953 | H24: 32.25704627 | I24: 33.45433521 | J24: 30.60304476 | K24: 40.24341725 | L24: 39.66422095 | M24: 35.59561864 | N24: =N23/N3 -> 34.83228267

Sheet ME
B1: Januar | C1: Februar | D1: März | E1: April | F1: Mai | G1: Juni | H1: Juli | I1: August | J1: September | K1: Oktober | L1: November | M1: Dezember | N1: Gesamt
A2: Saison | B2: 0.07242395954 | C2: 0.06394698535 | D2: 0.08797711824 | E2: 0.09373032697 | F2: 0.0784723441 | G2: 0.08604305758 | H2: 0.07640740123 | I2: 0.07947847958 | J2: 0.07253546096 | K2: 0.1029396894 | L2: 0.1004109922 | M2: 0.08563418483 | N2: =SUM(B2:M2) -> 1
A3: verk. Stunden | B3: =$N$3*B2 -> 995.8294437 | C3: =$N$3*C2 -> 879.2710486 | D3: 1209.685376 | E3: 1288.791996 | F3: 1078.994731 | G3: 1183.092042 | H3: 1050.601767 | I3: 1092.829094 | J3: 997.3625882 | K3: 1415.42073 | L3: 1380.651142 | M3: 1177.470041 | N3: 13750
A4: Umsatzerlöse | B4: =$N$4*B2 -> 65027.66268 | C4: =$N$4*C2 -> 57416.39947 | D4: 78992.45504 | E4: 84158.11733 | F4: 70458.35596 | G4: 77255.91032 | H4: 68604.29538 | I4: 71361.73985 | J4: 65127.77701 | K4: 92426.97364 | L4: 90156.5196 | M4: 76888.79371 | N4: =N3*N5 -> 897875
A5: Umsatz / Stk. | B5: =$N$5 -> 65.3 | C5: =$N$5 -> 65.3 | D5: 65.3 | E5: 65.3 | F5: 65.3 | G5: 65.3 | H5: 65.3 | I5: 65.3 | J5: 65.3 | K5: 65.3 | L5: 65.3 | M5: 65.3 | N5: 65.3
A6: Einsatzwerte | B6: =$N$6*B2 -> 15606.63904 | C6: =$N$6*C2 -> 13779.93587 | D6: 18958.18921 | E6: 20197.94816 | F6: 16910.00543 | G6: 18541.41848 | H6: 16465.03089 | I6: 17126.81756 | J6: 15630.66648 | K6: 22182.47367 | L6: 21637.5647 | M6: 18453.31049 | N6: =(N4*O6) -> 215490 | O6: 0.24 | P6: (EW!!)
A7: Bruttoertrag | B7: =$N$7*B2 -> 49421.02363 | C7: =$N$7*C2 -> 43636.4636 | D7: 60034.26583 | E7: 63960.16917 | F7: 53548.35053 | G7: 58714.49185 | H7: 52139.26449 | I7: 54234.92229 | J7: 49497.11053 | K7: 70244.49997 | L7: 68518.9549 | M7: 58435.48322 | N7: =N4-N6 -> 682385
A8: Bruttoertrag / Stk. | B8: =$N$8 -> 49.628 | C8: =$N$8 -> 49.628 | D8: 49.628 | E8: 49.628 | F8: 49.628 | G8: 49.628 | H8: 49.628 | I8: 49.628 | J8: 49.628 | K8: 49.628 | L8: 49.628 | M8: 49.628 | N8: =N7/N3 -> 49.628
A10: Variable Kosten | B10: =$N$10*B2 -> 1774.387009 | C10: =$N$10*C2 -> 1566.701141 | D10: 2155.439397 | E10: 2296.393011 | F10: 1922.572431 | G10: 2108.054911 | H10: 1871.98133 | I10: 1947.22275 | J10: 1777.118794 | K10: 2522.022391 | L10: 2460.069308 | M10: 2098.037528 | N10: 24500
A11: Fixum/Prov./Soz. | B11: =$N$11*B2 -> 0 | C11: =$N$11*C2 -> 0 | D11: 0 | E11: 0 | F11: 0 | G11: 0 | H11: 0 | I11: 0 | J11: 0 | K11: 0 | L11: 0 | M11: 0 | N11: =N10*O11 -> 0 | O11: 0 | P11: =SUM(O11:O15) -> 1
A12: Provisionen | B12: =$N$12*B2 -> 0 | C12: =$N$12*C2 -> 0 | D12: 0 | E12: 0 | F12: 0 | G12: 0 | H12: 0 | I12: 0 | J12: 0 | K12: 0 | L12: 0 | M12: 0 | N12: =N10*O12 -> 0 | O12: 0
A13: Fertigmachen | B13: =$N$13*B2 -> 0 | C13: =$N$13*C2 -> 0 | D13: 0 | E13: 0 | F13: 0 | G13: 0 | H13: 0 | I13: 0 | J13: 0 | K13: 0 | L13: 0 | M13: 0 | N13: =N10*O13 -> 0 | O13: 0
A14: Kulanz | B14: =$N$14*B2 -> 1774.387009 | C14: =$N$14*C2 -> 1566.701141 | D14: 2155.439397 | E14: 2296.393011 | F14: 1922.572431 | G14: 2108.054911 | H14: 1871.98133 | I14: 1947.22275 | J14: 1777.118794 | K14: 2522.022391 | L14: 2460.069308 | M14: 2098.037528 | N14: =N10*O14 -> 24500 | O14: 1
A15: sonst. variable Kosten | B15: =$N$15*B2 -> 0 | C15: =$N$15*C2 -> 0 | D15: 0 | E15: 0 | F15: 0 | G15: 0 | H15: 0 | I15: 0 | J15: 0 | K15: 0 | L15: 0 | M15: 0 | N15: =N10*O15 -> 0 | O15: 0
A16: Bruttoertrag II | B16: =$N$16*B2 -> 47646.63662 | C16: =$N$16*C2 -> 42069.76246 | D16: 57878.82643 | E16: 61663.77616 | F16: 51625.7781 | G16: 56606.43693 | H16: 50267.28316 | I16: 52287.69954 | J16: 47719.99173 | K16: 67722.47758 | L16: 66058.88559 | M16: 56337.44569 | N16: =N7-N10 -> 657885 | O16: =N16/N4 -> 0.732713351 | P16: Ziel > 65%
A17: Direkte Kosten | B17: =$N$17/12 -> 33041.66667 | C17: 33041.66667 | D17: 33041.66667 | E17: 33041.66667 | F17: 33041.66667 | G17: 33041.66667 | H17: 33041.66667 | I17: 33041.66667 | J17: 33041.66667 | K17: 33041.66667 | L17: 33041.66667 | M17: =$N$17/12 -> 33041.66667 | N17: 396500
A18: Personalkosten | B18: =$N$18/12 -> 29294.74167 | C18: 29294.74167 | D18: 29294.74167 | E18: 29294.74167 | F18: 29294.74167 | G18: 29294.74167 | H18: 29294.74167 | I18: 29294.74167 | J18: 29294.74167 | K18: 29294.74167 | L18: 29294.74167 | M18: =$N$18/12 -> 29294.74167 | N18: =$N$17*O18 -> 351536.9 | O18: 0.8866 | P18: =SUM(O18:O22) -> 1
A19: Werbekosten | B19: =$N$19/12 -> 1106.895833 | C19: 1106.895833 | D19: 1106.895833 | E19: 1106.895833 | F19: 1106.895833 | G19: 1106.895833 | H19: 1106.895833 | I19: 1106.895833 | J19: 1106.895833 | K19: 1106.895833 | L19: 1106.895833 | M19: =$N$19/12 -> 1106.895833 | N19: =$N$17*O19 -> 13282.75 | O19: 0.0335
A20: Fahrzeugkosten | B20: =$N$20/12 -> 571.6208333 | C20: 571.6208333 | D20: 571.6208333 | E20: 571.6208333 | F20: 571.6208333 | G20: 571.6208333 | H20: 571.6208333 | I20: 571.6208333 | J20: 571.6208333 | K20: 571.6208333 | L20: 571.6208333 | M20: =$N$20/12 -> 571.6208333 | N20: 6859.45 | O20: 0.0173
A21: Abschreibungen | B21: =$N$21/12 -> 0 | C21: 0 | D21: 0 | E21: 0 | F21: 0 | G21: 0 | H21: 0 | I21: 0 | J21: 0 | K21: 0 | L21: 0 | M21: =$N$21/12 -> 0 | N21: 0 | O21: 0
A22: Gemeinkosten | B22: =$N$22/12 -> 2068.408333 | C22: 2068.408333 | D22: 2068.408333 | E22: 2068.408333 | F22: 2068.408333 | G22: 2068.408333 | H22: 2068.408333 | I22: 2068.408333 | J22: 2068.408333 | K22: 2068.408333 | L22: 2068.408333 | M22: =$N$22/12 -> 2068.408333 | N22: 24820.9 | O22: 0.0626
A23: Deckungsbeitrag | B23: =B16-B17 -> 14604.96996 | C23: =C16-C17 -> 9028.095792 | D23: 24837.15977 | E23: 28622.10949 | F23: 18584.11143 | G23: 23564.77027 | H23: 17225.61649 | I23: 19246.03287 | J23: 14678.32507 | K23: 34680.81091 | L23: 33017.21892 | M23: 23295.77902 | N23: =N16-N17 -> 261385
A24: Deckungsbeitrag / Stk. | B24: =$N$24 -> 19.00981818 | C24: =$N$24 -> 19.00981818 | D24: 19.00981818 | E24: 19.00981818 | F24: 19.00981818 | G24: 19.00981818 | H24: 19.00981818 | I24: 19.00981818 | J24: 19.00981818 | K24: 19.00981818 | L24: 19.00981818 | M24: 19.00981818 | N24: =N23/N3 -> 19.00981818

Sheet KA
B1: Januar | C1: Februar | D1: März | E1: April | F1: Mai | G1: Juni | H1: Juli | I1: August | J1: September | K1: Oktober | L1: November | M1: Dezember | N1: Gesamt
A2: Saison | B2: 0.07242395954 | C2: 0.06394698535 | D2: 0.08797711824 | E2: 0.09373032697 | F2: 0.0784723441 | G2: 0.08604305758 | H2: 0.07640740123 | I2: 0.07947847958 | J2: 0.07253546096 | K2: 0.1029396894 | L2: 0.1004109922 | M2: 0.08563418483 | N2: =SUM(B2:M2) -> 1
A3: verk. Stunden | B3: =$N$3*B2 -> 177.4387009 | C3: =$N$3*C2 -> 156.6701141 | D3: 215.5439397 | E3: 229.6393011 | F3: 192.2572431 | G3: 210.8054911 | H3: 187.198133 | I3: 194.722275 | J3: 177.7118794 | K3: 252.2022391 | L3: 246.0069308 | M3: 209.8037528 | N3: 2450
A4: Umsatzerlöse | B4: =$N$4*B2 -> 19819.90289 | C4: =$N$4*C2 -> 17500.05175 | D4: 24076.25806 | E4: 25650.70993 | F4: 21475.13405 | G4: 23546.97335 | H4: 20910.03146 | I4: 21750.47811 | J4: 19850.41692 | K4: 28170.99011 | L4: 27478.97417 | M4: 23435.07919 | N4: =N3*N5 -> 273665
A5: Umsatz / Stk. | B5: =$N$5 -> 111.7 | C5: =$N$5 -> 111.7 | D5: 111.7 | E5: 111.7 | F5: 111.7 | G5: 111.7 | H5: 111.7 | I5: 111.7 | J5: 111.7 | K5: 111.7 | L5: 111.7 | M5: 111.7 | N5: 111.7
A6: Einsatzwerte | B6: =$N$6*B2 -> 3389.203394 | C6: =$N$6*C2 -> 2992.508849 | D6: 4117.040129 | E6: 4386.271398 | F6: 3672.247922 | G6: 4026.532443 | H6: 3575.615379 | I6: 3719.331757 | J6: 3394.421294 | K6: 4817.239308 | L6: 4698.904584 | M6: 4007.398542 | N6: =N4*O6 -> 46796.715 | O6: 0.171 | P6: (EW!!!)
A7: Bruttoertrag | B7: =$N$7*B2 -> 16430.69949 | C7: =$N$7*C2 -> 14507.5429 | D7: 19959.21793 | E7: 21264.43853 | F7: 17802.88613 | G7: 19520.44091 | H7: 17334.41608 | I7: 18031.14636 | J7: 16455.99563 | K7: 23353.7508 | L7: 22780.06959 | M7: 19427.68065 | N7: =N4-N6 -> 226868.285
A8: Bruttoertrag / Stk. | B8: =$N$8 -> 92.5993 | C8: =$N$8 -> 92.5993 | D8: 92.5993 | E8: 92.5993 | F8: 92.5993 | G8: 92.5993 | H8: 92.5993 | I8: 92.5993 | J8: 92.5993 | K8: 92.5993 | L8: 92.5993 | M8: 92.5993 | N8: =N7/N3 -> 92.5993
A10: Variable Kosten | B10: =$N$10*B2 -> 43.45437573 | C10: =$N$10*C2 -> 38.36819121 | D10: 52.78627094 | E10: 56.23819618 | F10: 47.08340646 | G10: 51.62583455 | H10: 45.84444074 | I10: 47.68708775 | J10: 43.52127658 | K10: 61.76381365 | L10: 60.24659531 | M10: 51.3805109 | N10: 600
A11: Fixum/Prov./Soz. | B11: =$N$11*B2 -> 0 | C11: =$N$11*C2 -> 0 | D11: 0 | E11: 0 | F11: 0 | G11: 0 | H11: 0 | I11: 0 | J11: 0 | K11: 0 | L11: 0 | M11: 0 | N11: =N10*O11 -> 0 | O11: 0 | P11: =SUM(O11:O15) -> 1
A12: Provisionen | B12: =$N$12*B2 -> 0 | C12: =$N$12*C2 -> 0 | D12: 0 | E12: 0 | F12: 0 | G12: 0 | H12: 0 | I12: 0 | J12: 0 | K12: 0 | L12: 0 | M12: 0 | N12: =N10*O12 -> 0 | O12: 0
A13: Fertigmachen | B13: =$N$13*B2 -> 0 | C13: =$N$13*C2 -> 0 | D13: 0 | E13: 0 | F13: 0 | G13: 0 | H13: 0 | I13: 0 | J13: 0 | K13: 0 | L13: 0 | M13: 0 | N13: =N10*O13 -> 0 | O13: 0
A14: Kulanz | B14: =$N$14*B2 -> 43.45437573 | C14: =$N$14*C2 -> 38.36819121 | D14: 52.78627094 | E14: 56.23819618 | F14: 47.08340646 | G14: 51.62583455 | H14: 45.84444074 | I14: 47.68708775 | J14: 43.52127658 | K14: 61.76381365 | L14: 60.24659531 | M14: 51.3805109 | N14: =N10*O14 -> 600 | O14: 1
A15: sonst. variable Kosten | B15: =$N$15*B2 -> 0 | C15: =$N$15*C2 -> 0 | D15: 0 | E15: 0 | F15: 0 | G15: 0 | H15: 0 | I15: 0 | J15: 0 | K15: 0 | L15: 0 | M15: 0 | N15: =N10*O15 -> 0 | O15: 0
A16: Bruttoertrag II | B16: =$N$16*B2 -> 16387.24512 | C16: =$N$16*C2 -> 14469.17471 | D16: 19906.43166 | E16: 21208.20034 | F16: 17755.80272 | G16: 19468.81507 | H16: 17288.57164 | I16: 17983.45927 | J16: 16412.47435 | K16: 23291.98698 | L16: 22719.823 | M16: 19376.30014 | N16: =N7-N10 -> 226268.285
A17: Direkte Kosten | B17: =$N$17/12 -> 3333.333333 | C17: =$N$17/12 -> 3333.333333 | D17: 3333.333333 | E17: 3333.333333 | F17: 3333.333333 | G17: 3333.333333 | H17: 3333.333333 | I17: 3333.333333 | J17: 3333.333333 | K17: 3333.333333 | L17: 3333.333333 | M17: 3333.333333 | N17: 40000
A18: Personalkosten | B18: =$N$18/12 -> 2524 | C18: =$N$18/12 -> 2524 | D18: 2524 | E18: 2524 | F18: 2524 | G18: 2524 | H18: 2524 | I18: 2524 | J18: 2524 | K18: 2524 | L18: 2524 | M18: 2524 | N18: =$N$17*O18 -> 30288 | O18: 0.7572 | P18: =SUM(O18:O22) -> 1
A19: Werbekosten | B19: =$N$19/12 -> 0 | C19: =$N$19/12 -> 0 | D19: 0 | E19: 0 | F19: 0 | G19: 0 | H19: 0 | I19: 0 | J19: 0 | K19: 0 | L19: 0 | M19: 0 | N19: =$N$17*O19 -> 0 | O19: 0
A20: Fahrzeugkosten | B20: =$N$20/12 -> 0 | C20: =$N$20/12 -> 0 | D20: 0 | E20: 0 | F20: 0 | G20: 0 | H20: 0 | I20: 0 | J20: 0 | K20: 0 | L20: 0 | M20: 0 | N20: 0 | O20: 0
A21: Abschreibungen | B21: =$N$21/12 -> 0 | C21: =$N$21/12 -> 0 | D21: 0 | E21: 0 | F21: 0 | G21: 0 | H21: 0 | I21: 0 | J21: 0 | K21: 0 | L21: 0 | M21: 0 | N21: 0 | O21: 0
A22: Gemeinkosten | B22: =$N$22/12 -> 809.3333333 | C22: =$N$22/12 -> 809.3333333 | D22: 809.3333333 | E22: 809.3333333 | F22: 809.3333333 | G22: 809.3333333 | H22: 809.3333333 | I22: 809.3333333 | J22: 809.3333333 | K22: 809.3333333 | L22: 809.3333333 | M22: 809.3333333 | N22: 9712 | O22: 0.2428
A23: Deckungsbeitrag | B23: =B16-B17 -> 13053.91179 | C23: =C16-C17 -> 11135.84137 | D23: 16573.09833 | E23: 17874.867 | F23: 14422.46939 | G23: 16135.48174 | H23: 13955.23831 | I23: 14650.12594 | J23: 13079.14102 | K23: 19958.65365 | L23: 19386.48966 | M23: 16042.96681 | N23: =N16-N17 -> 186268.285
A24: Deckungsbeitrag / Stk. | B24: =$N$24 -> 76.02787143 | C24: =$N$24 -> 76.02787143 | D24: 76.02787143 | E24: 76.02787143 | F24: 76.02787143 | G24: 76.02787143 | H24: 76.02787143 | I24: 76.02787143 | J24: 76.02787143 | K24: 76.02787143 | L24: 76.02787143 | M24: 76.02787143 | N24: =N23/N3 -> 76.02787143

Sheet LA
B1: Januar | C1: Februar | D1: März | E1: April | F1: Mai | G1: Juni | H1: Juli | I1: August | J1: September | K1: Oktober | L1: November | M1: Dezember | N1: Gesamt
A2: Saison | B2: 0.07242395954 | C2: 0.06394698535 | D2: 0.08797711824 | E2: 0.09373032697 | F2: 0.0784723441 | G2: 0.08604305758 | H2: 0.07640740123 | I2: 0.07947847958 | J2: 0.07253546096 | K2: 0.1029396894 | L2: 0.1004109922 | M2: 0.08563418483 | N2: =SUM(B2:M2) -> 1
A3: verk. Stunden | B3: =$N$3*B2 -> 161.5054298 | C3: =$N$3*C2 -> 142.6017773 | D3: 196.1889737 | E3: 209.0186292 | F3: 174.9933274 | G3: 191.8760184 | H3: 170.3885048 | I3: 177.2370095 | J3: 161.7540779 | K3: 229.5555074 | L3: 223.9165126 | M3: 190.9642322 | N3: 2230
A4: Umsatzerlöse | B4: =$N$4*B2 -> 33465.54011 | C4: =$N$4*C2 -> 29548.51428 | D4: 40652.31723 | E4: 43310.75015 | F4: 36260.36736 | G4: 39758.62977 | H4: 35306.20207 | I4: 36725.28073 | J4: 33517.06249 | K4: 47566.19669 | L4: 46397.74057 | M4: 39569.69855 | N4: =N3*N5 -> 462078.3
A5: Umsatz / Stk. | B5: =$N$5 -> 207.21 | C5: =$N$5 -> 207.21 | D5: 207.21 | E5: 207.21 | F5: 207.21 | G5: 207.21 | H5: 207.21 | I5: 207.21 | J5: 207.21 | K5: 207.21 | L5: 207.21 | M5: =$N$5 -> 207.21 | N5: 207.21
A6: Einsatzwerte | B6: =$N$6*B2 -> 13085.02618 | C6: =$N$6*C2 -> 11553.46908 | D6: 15895.05604 | E6: 16934.50331 | F6: 14177.80364 | G6: 15545.62424 | H6: 13804.72501 | I6: 14359.58477 | J6: 13105.17143 | K6: 18598.38291 | L6: 18141.51656 | M6: 15471.75213 | N6: =N4*O6 -> 180672.6153 | O6: 0.391 | P6: (EW!!!)
A7: Bruttoertrag | B7: =$N$7*B2 -> 20380.51392 | C7: =$N$7*C2 -> 17995.0452 | D7: 24757.2612 | E7: 26376.24684 | F7: 22082.56372 | G7: 24213.00553 | H7: 21501.47706 | I7: 22365.69596 | J7: 20411.89106 | K7: 28967.81378 | L7: 28256.22401 | M7: 24097.94642 | N7: =N4-N6 -> 281405.6847
A8: Bruttoertrag / Stk. | B8: =B7/B3 -> 126.19089 | C8: 126.19089 | D8: 126.19089 | E8: 126.19089 | F8: 126.19089 | G8: 126.19089 | H8: 126.19089 | I8: 126.19089 | J8: 126.19089 | K8: 126.19089 | L8: 126.19089 | M8: 126.19089 | N8: =N7/N3 -> 126.19089
A10: Variable Kosten | B10: =$N$10*B2 -> 0 | C10: =$N$10*C2 -> 0 | D10: 0 | E10: 0 | F10: 0 | G10: 0 | H10: 0 | I10: 0 | J10: 0 | K10: 0 | L10: 0 | M10: 0 | N10: 0
A11: Fixum/Prov./Soz. | B11: =$N$11*B2 -> 0 | C11: =$N$11*C2 -> 0 | D11: 0 | E11: 0 | F11: 0 | G11: 0 | H11: 0 | I11: 0 | J11: 0 | K11: 0 | L11: 0 | M11: 0 | N11: =N10*O11 -> 0 | O11: 0 | P11: =SUM(O11:O15) -> 1
A12: Provisionen | B12: =$N$12*B2 -> 0 | C12: =$N$12*C2 -> 0 | D12: 0 | E12: 0 | F12: 0 | G12: 0 | H12: 0 | I12: 0 | J12: 0 | K12: 0 | L12: 0 | M12: 0 | N12: =N10*O12 -> 0 | O12: 0
A13: Fertigmachen | B13: =$N$13*B2 -> 0 | C13: =$N$13*C2 -> 0 | D13: 0 | E13: 0 | F13: 0 | G13: 0 | H13: 0 | I13: 0 | J13: 0 | K13: 0 | L13: 0 | M13: 0 | N13: =N10*O13 -> 0 | O13: 0
A14: Kulanz | B14: =$N$14*B2 -> 0 | C14: =$N$14*C2 -> 0 | D14: 0 | E14: 0 | F14: 0 | G14: 0 | H14: 0 | I14: 0 | J14: 0 | K14: 0 | L14: 0 | M14: 0 | N14: =N10*O14 -> 0 | O14: 1
A15: sonst. variable Kosten | B15: =$N$15*B2 -> 0 | C15: =$N$15*C2 -> 0 | D15: 0 | E15: 0 | F15: 0 | G15: 0 | H15: 0 | I15: 0 | J15: 0 | K15: 0 | L15: 0 | M15: 0 | N15: =N10*O15 -> 0 | O15: 0
A16: Bruttoertrag II | B16: =$N$16*B2 -> 20380.51392 | C16: =$N$16*C2 -> 17995.0452 | D16: 24757.2612 | E16: 26376.24684 | F16: 22082.56372 | G16: 24213.00553 | H16: 21501.47706 | I16: 22365.69596 | J16: 20411.89106 | K16: 28967.81378 | L16: 28256.22401 | M16: 24097.94642 | N16: =N7-N10 -> 281405.6847
A17: Direkte Kosten | B17: =$N$17/12 -> 7258.333333 | C17: =$N$17/12 -> 7258.333333 | D17: 7258.333333 | E17: 7258.333333 | F17: 7258.333333 | G17: 7258.333333 | H17: 7258.333333 | I17: 7258.333333 | J17: 7258.333333 | K17: 7258.333333 | L17: 7258.333333 | M17: 7258.333333 | N17: 87100
A18: Personalkosten | B18: =$N$18/12 -> 5411.813333 | C18: =$N$18/12 -> 5411.813333 | D18: 5411.813333 | E18: 5411.813333 | F18: 5411.813333 | G18: 5411.813333 | H18: 5411.813333 | I18: 5411.813333 | J18: 5411.813333 | K18: 5411.813333 | L18: 5411.813333 | M18: 5411.813333 | N18: =$N$17*O18 -> 64941.76 | O18: 0.7456 | P18: =SUM(O18:O22) -> 1
A19: Werbekosten | B19: =$N$19/12 -> 0 | C19: =$N$19/12 -> 0 | D19: 0 | E19: 0 | F19: 0 | G19: 0 | H19: 0 | I19: 0 | J19: 0 | K19: 0 | L19: 0 | M19: 0 | N19: =$N$17*O19 -> 0 | O19: 0
A20: Fahrzeugkosten | B20: =$N$20/12 -> 119.0366667 | C20: =$N$20/12 -> 119.0366667 | D20: 119.0366667 | E20: 119.0366667 | F20: 119.0366667 | G20: 119.0366667 | H20: 119.0366667 | I20: 119.0366667 | J20: 119.0366667 | K20: 119.0366667 | L20: 119.0366667 | M20: 119.0366667 | N20: 1428.44 | O20: 0.0164
A21: Abschreibungen | B21: =$N$21/12 -> 0 | C21: =$N$21/12 -> 0 | D21: 0 | E21: 0 | F21: 0 | G21: 0 | H21: 0 | I21: 0 | J21: 0 | K21: 0 | L21: 0 | M21: 0 | N21: 0 | O21: 0
A22: Gemeinkosten | B22: =$N$22/12 -> 1727.483333 | C22: =$N$22/12 -> 1727.483333 | D22: 1727.483333 | E22: 1727.483333 | F22: 1727.483333 | G22: 1727.483333 | H22: 1727.483333 | I22: 1727.483333 | J22: 1727.483333 | K22: 1727.483333 | L22: 1727.483333 | M22: 1727.483333 | N22: 20729.8 | O22: 0.238
A23: Deckungsbeitrag | B23: =B16-B17 -> 13122.18059 | C23: =C16-C17 -> 10736.71186 | D23: 17498.92786 | E23: 19117.91351 | F23: 14824.23039 | G23: 16954.6722 | H23: 14243.14373 | I23: 15107.36263 | J23: 13153.55772 | K23: 21709.48045 | L23: 20997.89067 | M23: 16839.61308 | N23: =N16-N17 -> 194305.6847
A24: Deckungsbeitrag / Stk. | B24: =B23/B3 -> 81.24916053 | C24: 75.29157115 | D24: 89.19424744 | E24: 91.46511765 | F24: 84.713118 | G24: 88.36264344 | H24: 83.59216338 | I24: 85.2381942 | J24: 81.3182449 | K24: 94.5718127 | L24: 93.77553461 | M24: 88.18202703 | N24: =N23/N3 -> 87.13259404

Sheet T&Z
B1: Januar | C1: Februar | D1: März | E1: April | F1: Mai | G1: Juni | H1: Juli | I1: August | J1: September | K1: Oktober | L1: November | M1: Dezember | N1: Gesamt
A2: Saison | B2: 0.07242395954 | C2: 0.06394698535 | D2: 0.08797711824 | E2: 0.09373032697 | F2: 0.0784723441 | G2: 0.08604305758 | H2: 0.07640740123 | I2: 0.07947847958 | J2: 0.07253546096 | K2: 0.1029396894 | L2: 0.1004109922 | M2: 0.08563418483 | N2: =SUM(B2:M2) -> 1
A3: verk. Stunden | B3: =$N$3*B2*$O$3 -> 0 | C3: =$N$3*C2 -> 0 | D3: 0 | E3: 0 | F3: 0 | G3: 0 | H3: 0 | I3: 0 | J3: 0 | K3: 0 | L3: 0 | M3: 0 | N3: 0
A4: Umsatzerlöse | B4: =$N$4*B2 -> 126595.0231 | C4: =$N$4*C2 -> 111777.5131 | D4: 153781.5025 | E4: 163837.9478 | F4: 137167.4274 | G4: 150400.8194 | H4: 133557.9659 | I4: 138926.1236 | J4: 126789.9244 | K4: 179935.6517 | L4: 175515.5608 | M4: 149686.1215 | N4: =(ME!N4+KA!N4+LA!N4)*S4 -> 1747971.581 | R4: Faktor Umsatz ME+KA+LA | S4: 1.07
A5: Einsatzwerte | B5: =$N$5*B2 -> 81653.78988 | C5: 72096.49594 | D5: 99189.06909 | E5: 105675.4763 | F5: 88472.99067 | G5: 97008.52851 | H5: 86144.88803 | I5: 89607.34972 | J5: 81779.50122 | K5: 116058.4953 | L5: 113207.5367 | M5: 96547.54834 | N5: =N4*(O5) -> 1127441.67 | O5: 0.645 | P5: (EW!!!)
A6: Bruttoertrag | B6: =$N$6*B2 -> 44941.23319 | C6: 39681.01715 | D6: 54592.43337 | E6: 58162.47148 | F6: 48694.43672 | G6: 53392.29088 | H6: 47413.07791 | I6: 49318.77388 | J6: 45010.42315 | K6: 63877.15634 | L6: 62308.02407 | M6: 53138.57312 | N6: =N4-N5 -> 620529.9113
A8: Variable Kosten | B8: =$N$8*B2 -> 1412.267211 | C8: 1246.966214 | D8: 1715.553806 | E8: 1827.741376 | F8: 1530.21071 | G8: 1677.839623 | H8: 1489.944324 | I8: 1549.830352 | J8: 1414.441489 | K8: 2007.323944 | L8: 1958.014348 | M8: 1669.866604 | N8: 19500
A9: Fixum/Prov./Soz. | B9: =$N$9*B2 -> 0 | C9: 0 | D9: 0 | E9: 0 | F9: 0 | G9: 0 | H9: 0 | I9: 0 | J9: 0 | K9: 0 | L9: 0 | M9: 0 | N9: =N8*O9 -> 0 | O9: 0 | P9: =SUM(O9:O13) -> 1
A10: Provisionen | B10: =$N$10*B2 -> 0 | C10: 0 | D10: 0 | E10: 0 | F10: 0 | G10: 0 | H10: 0 | I10: 0 | J10: 0 | K10: 0 | L10: 0 | M10: 0 | N10: =N8*O10 -> 0 | O10: 0
A11: Fertigmachen | B11: =$N$11*B2 -> 0 | C11: 0 | D11: 0 | E11: 0 | F11: 0 | G11: 0 | H11: 0 | I11: 0 | J11: 0 | K11: 0 | L11: 0 | M11: 0 | N11: =N8*O11 -> 0 | O11: 0
A12: Kulanz | B12: =$N$12*B2 -> 1412.267211 | C12: 1246.966214 | D12: 1715.553806 | E12: 1827.741376 | F12: 1530.21071 | G12: 1677.839623 | H12: 1489.944324 | I12: 1549.830352 | J12: 1414.441489 | K12: 2007.323944 | L12: 1958.014348 | M12: 1669.866604 | N12: =N8*O12 -> 19500 | O12: 1
A13: sonst. variable Kosten | B13: =$N$13*B2 -> 0 | C13: 0 | D13: 0 | E13: 0 | F13: 0 | G13: 0 | H13: 0 | I13: 0 | J13: 0 | K13: 0 | L13: 0 | M13: 0 | N13: =N8*O13 -> 0 | O13: 0
A14: Bruttoertrag II | B14: =$N$14*B2 -> 43528.96598 | C14: 38434.05093 | D14: 52876.87957 | E14: 56334.7301 | F14: 47164.22601 | G14: 51714.45126 | H14: 45923.13358 | I14: 47768.94353 | J14: 43595.98166 | K14: 61869.8324 | L14: 60350.00972 | M14: 51468.70651 | N14: =N6-N8 -> 601029.9113
A15: Direkte Kosten | B15: =$N$15/12 -> 21416.66667 | C15: =$N$15/12 -> 21416.66667 | D15: 21416.66667 | E15: 21416.66667 | F15: 21416.66667 | G15: 21416.66667 | H15: 21416.66667 | I15: 21416.66667 | J15: 21416.66667 | K15: 21416.66667 | L15: 21416.66667 | M15: 21416.66667 | N15: 257000
A16: Personalkosten | B16: =$N$16/12 -> 21133.96667 | C16: =$N$16/12 -> 21133.96667 | D16: 21133.96667 | E16: 21133.96667 | F16: 21133.96667 | G16: 21133.96667 | H16: 21133.96667 | I16: 21133.96667 | J16: 21133.96667 | K16: 21133.96667 | L16: 21133.96667 | M16: 21133.96667 | N16: =$N$15*O16 -> 253607.6 | O16: 0.9868 | P16: =SUM(O16:O20) -> 1
A17: Werbekosten | B17: =$N$17/12 -> 53.54166667 | C17: =$N$17/12 -> 53.54166667 | D17: 53.54166667 | E17: 53.54166667 | F17: 53.54166667 | G17: 53.54166667 | H17: 53.54166667 | I17: 53.54166667 | J17: 53.54166667 | K17: 53.54166667 | L17: 53.54166667 | M17: 53.54166667 | N17: =$N$15*O17 -> 642.5 | O17: 0.0025
A18: Fahrzeugkosten | B18: =$N$18/12 -> 104.9416667 | C18: =$N$18/12 -> 104.9416667 | D18: 104.9416667 | E18: 104.9416667 | F18: 104.9416667 | G18: 104.9416667 | H18: 104.9416667 | I18: 104.9416667 | J18: 104.9416667 | K18: 104.9416667 | L18: 104.9416667 | M18: 104.9416667 | N18: 1259.3 | O18: 0.0049
A19: Abschreibungen | B19: =$N$19/12 -> 0 | C19: =$N$19/12 -> 0 | D19: 0 | E19: 0 | F19: 0 | G19: 0 | H19: 0 | I19: 0 | J19: 0 | K19: 0 | L19: 0 | M19: 0 | N19: 0 | O19: 0
A20: Gemeinkosten | B20: =$N$20/12 -> 124.2166667 | C20: =$N$20/12 -> 124.2166667 | D20: 124.2166667 | E20: 124.2166667 | F20: 124.2166667 | G20: 124.2166667 | H20: 124.2166667 | I20: 124.2166667 | J20: 124.2166667 | K20: 124.2166667 | L20: 124.2166667 | M20: 124.2166667 | N20: 1490.6 | O20: 0.0058
A21: Deckungsbeitrag | B21: =B14-B15 -> 22112.29931 | C21: =C14-C15 -> 17017.38426 | D21: 31460.2129 | E21: 34918.06344 | F21: 25747.55935 | G21: 30297.78459 | H21: 24506.46692 | I21: 26352.27686 | J21: 22179.315 | K21: 40453.16573 | L21: 38933.34305 | M21: 30052.03984 | N21: =N14-N15 -> 344029.9113

Sheet MW
B1: Januar | C1: Februar | D1: März | E1: April | F1: Mai | G1: Juni | H1: Juli | I1: August | J1: September | K1: Oktober | L1: November | M1: Dezember | N1: Gesamt
A2: Saison | B2: 0.07242395954 | C2: 0.06394698535 | D2: 0.08797711824 | E2: 0.09373032697 | F2: 0.0784723441 | G2: 0.08604305758 | H2: 0.07640740123 | I2: 0.07947847958 | J2: 0.07253546096 | K2: 0.1029396894 | L2: 0.1004109922 | M2: 0.08563418483 | N2: =SUM(B2:M2) -> 1
A3: Umsatzerlöse | B3: =$N$3*B2 -> 7532.091793 | C3: 6650.486477 | D3: 9149.620297 | E3: 9747.954005 | F3: 8161.123787 | G3: 8948.477988 | H3: 7946.369728 | I3: 8265.761876 | J3: 7543.68794 | K3: 10705.7277 | L3: 10442.74319 | M3: 8905.955223 | N3: 104000
A4: Einsatzwerte | B4: =$N$4*B2 -> 0 | C4: 0 | D4: 0 | E4: 0 | F4: 0 | G4: 0 | H4: 0 | I4: 0 | J4: 0 | K4: 0 | L4: 0 | M4: 0 | N4: 0 | O4: =N4/N3 -> 0
A5: Bruttoertrag | B5: =$N$5*B2 -> 7532.091793 | C5: 6650.486477 | D5: 9149.620297 | E5: 9747.954005 | F5: 8161.123787 | G5: 8948.477988 | H5: 7946.369728 | I5: 8265.761876 | J5: 7543.68794 | K5: 10705.7277 | L5: 10442.74319 | M5: 8905.955223 | N5: =N3-N4 -> 104000
A7: Variable Kosten | B7: =$N$7*B2 -> 0 | C7: 0 | D7: 0 | E7: 0 | F7: 0 | G7: 0 | H7: 0 | I7: 0 | J7: 0 | K7: 0 | L7: 0 | M7: 0 | N7: 0
A8: Fixum/Prov./Soz. | B8: =$N$8*B2 -> 0 | C8: 0 | D8: 0 | E8: 0 | F8: 0 | G8: 0 | H8: 0 | I8: 0 | J8: 0 | K8: 0 | L8: 0 | M8: 0 | N8: =N7*O8 -> 0 | O8: 0 | P8: =SUM(O8:O12) -> 1
A9: Provisionen | B9: =$N$9*B2 -> 0 | C9: 0 | D9: 0 | E9: 0 | F9: 0 | G9: 0 | H9: 0 | I9: 0 | J9: 0 | K9: 0 | L9: 0 | M9: 0 | N9: =N7*O9 -> 0 | O9: 0
A10: Fertigmachen | B10: =$N$10*B2 -> 0 | C10: 0 | D10: 0 | E10: 0 | F10: 0 | G10: 0 | H10: 0 | I10: 0 | J10: 0 | K10: 0 | L10: 0 | M10: 0 | N10: =N7*O10 -> 0 | O10: 0
A11: Kulanz | B11: =$N$11*B2 -> 0 | C11: 0 | D11: 0 | E11: 0 | F11: 0 | G11: 0 | H11: 0 | I11: 0 | J11: 0 | K11: 0 | L11: 0 | M11: 0 | N11: =N7*O11 -> 0 | O11: 1
A12: sonst. variable Kosten | B12: =$N$12*B2 -> 0 | C12: 0 | D12: 0 | E12: 0 | F12: 0 | G12: 0 | H12: 0 | I12: 0 | J12: 0 | K12: 0 | L12: 0 | M12: 0 | N12: =N7*O12 -> 0 | O12: 0
A13: Bruttoertrag II | B13: =$N$13*B2 -> 7532.091793 | C13: 6650.486477 | D13: 9149.620297 | E13: 9747.954005 | F13: 8161.123787 | G13: 8948.477988 | H13: 7946.369728 | I13: 8265.761876 | J13: 7543.68794 | K13: 10705.7277 | L13: 10442.74319 | M13: 8905.955223 | N13: =N5-N7 -> 104000
A14: Direkte Kosten | B14: =$N$14/12 -> 5833.333333 | C14: =$N$14/12 -> 5833.333333 | D14: 5833.333333 | E14: 5833.333333 | F14: 5833.333333 | G14: 5833.333333 | H14: 5833.333333 | I14: 5833.333333 | J14: 5833.333333 | K14: 5833.333333 | L14: 5833.333333 | M14: 5833.333333 | N14: 70000
A15: Personalkosten | B15: =$N$15/12 -> 0 | C15: =$N$15/12 -> 0 | D15: 0 | E15: 0 | F15: 0 | G15: 0 | H15: 0 | I15: 0 | J15: 0 | K15: 0 | L15: 0 | M15: 0 | N15: =$N$14*O15 -> 0 | O15: 0 | P15: =SUM(O15:O19) -> 1
A16: Werbekosten | B16: =$N$16/12 -> -179.0833333 | C16: =$N$16/12 -> -179.0833333 | D16: -179.0833333 | E16: -179.0833333 | F16: -179.0833333 | G16: -179.0833333 | H16: -179.0833333 | I16: -179.0833333 | J16: -179.0833333 | K16: -179.0833333 | L16: -179.0833333 | M16: -179.0833333 | N16: =$N$14*O16 -> -2149 | O16: -0.0307
A17: Fahrzeugkosten | B17: =$N$17/12 -> 2387.583333 | C17: =$N$17/12 -> 2387.583333 | D17: 2387.583333 | E17: 2387.583333 | F17: 2387.583333 | G17: 2387.583333 | H17: 2387.583333 | I17: 2387.583333 | J17: 2387.583333 | K17: 2387.583333 | L17: 2387.583333 | M17: 2387.583333 | N17: 28651 | O17: 0.4093
A18: Abschreibungen | B18: =$N$18/12 -> 3624.833333 | C18: =$N$18/12 -> 3624.833333 | D18: 3624.833333 | E18: 3624.833333 | F18: 3624.833333 | G18: 3624.833333 | H18: 3624.833333 | I18: 3624.833333 | J18: 3624.833333 | K18: 3624.833333 | L18: 3624.833333 | M18: 3624.833333 | N18: 43498 | O18: 0.6214
A19: Gemeinkosten | B19: =$N$19/12 -> 0 | C19: =$N$19/12 -> 0 | D19: 0 | E19: 0 | F19: 0 | G19: 0 | H19: 0 | I19: 0 | J19: 0 | K19: 0 | L19: 0 | M19: 0 | N19: 0 | O19: 0
A20: Deckungsbeitrag | B20: =B13-B14 -> 1698.758459 | C20: =C13-C14 -> 817.1531433 | D20: 3316.286963 | E20: 3914.620672 | F20: 2327.790454 | G20: 3115.144655 | H20: 2113.036395 | I20: 2432.428543 | J20: 1710.354606 | K20: 4872.394367 | L20: 4609.409853 | M20: 3072.621889 | N20: =N13-N14 -> 34000

Sheet ---
B1: 2015
A2: Neuwagen Stk. | B2: 306
A3: Gebrauchtwagen Stk. | B3: 606
A4: Service AW gesamt | B4: 11325
A5: Umsatzerlöse | B5: 11519122
A6: Einsatzwerte | B6: 9474183
A7: Bruttoertrag | B7: 2044939
A8: Variable Kosten | B8: 285820
A9: Fixum/Prov./Soz. | B9: 179615
A10: Provisionen | B10: 13635
A11: Fertigmachen | B11: 6546
A12: Kulanz | B12: 45336
A13: sonst. variable Kosten | B13: 40689
A14: Bruttoertrag II | B14: 1759119
A15: Direkte Kosten | B15: 959551
A16: Personalkosten | B16: 633343
A17: Werbekosten | B17: 99873
A18: Fahrzeugkosten | B18: 96610
A19: Abschreibungen | B19: 112436
A20: Gemeinkosten | B20: 17289
A21: Deckungsbeitrag | B21: 799568
A22: Indirekte Kosten | B22: 989126
A23: Personalkosten | B23: 301363
A24: Werbekosten | B24: 79480
A25: Fahrzeugkosten | B25: 13295
A26: Abschreibungen | B26: 15165
A27: Gemeinkosten | B27: 269217
A28: Raumkosten | B28: 195634
A29: Kalk. Kosten | B29: 114972
A30: Betriebsergebnis | B30: -189558
A31: Neutrales Ergebnis | B31: 12107
A32: Unternehmenserg. | B32: -177451

Sheet Planung_2017
A1: Rechtseinheit | B1: Betrieb | C1: Bookkeep Date | D1: Kostenstelle | E1: Ebene1 | F1: Ebene2 | G1: Ebene3 | H1: Marke | I1: Wert1 | J1: Wert2 | K1: Wert3 | L1: Wert4 | M1: Wert5 | N1: Wert6 | O1: Wert7 | P1: Wert8 | Q1: Wert9 | R1: Wert10 | S1: Wert11 | T1: Wert12
A2: 1 | B2: 01 | C2: 2017 | D2: 1 | E2: verkaufte Stückzahlen | F2: VE Neuwagen | H2: 1 | I2: =NW!B3 -> 25.98999598 | J2: =NW!C3 -> 24.39395333 | K2: =NW!D3 -> 34.07260292 | L2: =NW!E3 -> 30.47870153 | M2: =NW!F3 -> 40.41123959 | N2: =NW!G3 -> 33.34039351 | O2: =NW!H3 -> 27.14697243 | P2: =NW!I3 -> 27.29241225 | Q2: =NW!J3 -> 27.6136455 | R2: =NW!K3 -> 33.6624002 | S2: =NW!L3 -> 24.51547978 | T2: =NW!M3 -> 31.082203
A3: 1 | B3: 01 | C3: 2017 | D3: 1 | E3: Umsatzerlöse | F3: VE Neuwagen | H3: 1 | I3: =NW!B4*-1 -> -418438.9352 | J3: =NW!C4*-1 -> -392742.6487 | K3: =NW!D4*-1 -> -548568.907 | L3: =NW!E4*-1 -> -490707.0946 | M3: =NW!F4*-1 -> -650620.9574 | N3: =NW!G4*-1 -> -536780.3355 | O3: =NW!H4*-1 -> -437066.2561 | P3: =NW!I4*-1 -> -439407.8372 | Q3: =NW!J4*-1 -> -444579.6925 | R3: =NW!K4*-1 -> -541964.6432 | S3: =NW!L4*-1 -> -394699.2244 | T3: =NW!M4*-1 -> -500423.4683
A4: 1 | B4: 01 | C4: 2017 | D4: 1 | E4: Einsatzwerte | F4: EW Neuwagen | H4: 1 | I4: =NW!B6 -> 384126.9425 | J4: =NW!C6 -> 360537.7515 | K4: =NW!D6 -> 503586.2566 | L4: =NW!E6 -> 450469.1128 | M4: =NW!F6 -> 597270.0389 | N4: =NW!G6 -> 492764.348 | O4: =NW!H6 -> 401226.8231 | P4: =NW!I6 -> 403376.3945 | Q4: =NW!J6 -> 408124.1577 | R4: =NW!K6 -> 497523.5425 | S4: =NW!L6 -> 362333.888 | T4: =NW!M6 -> 459388.7439
A5: 1 | B5: 01 | C5: 2017 | D5: 1 | E5: Kosten | F5: Variable Kosten | G5: Fixum/Prov./Soz. | H5: 1 | I5: =NW!B11 -> 10275.31384 | J5: =NW!C11 -> 9644.308011 | K5: =NW!D11 -> 13470.82504 | L5: =NW!E11 -> 12049.95276 | M5: =NW!F11 -> 15976.84624 | N5: =NW!G11 -> 13181.34129 | O5: =NW!H11 -> 10732.73201 | P5: =NW!I11 -> 10790.23258 | Q5: =NW!J11 -> 10917.23424 | R5: =NW!K11 -> 13308.64872 | S5: =NW!L11 -> 9692.35428 | T5: =NW!M11 -> 12288.55099
A6: 1 | B6: 01 | C6: 2017 | D6: 1 | E6: Kosten | F6: Variable Kosten | G6: Provisionen | H6: 1 | I6: =NW!B12 -> 185.3411588 | J6: =NW!C12 -> 173.9593797 | K6: =NW!D12 -> 242.9802496 | L6: =NW!E12 -> 217.3512403 | M6: =NW!F12 -> 288.1826523 | N6: =NW!G12 -> 237.7586812 | O6: =NW!H12 -> 193.5918471 | P6: =NW!I12 -> 194.6290148 | Q6: =NW!J12 -> 196.9198095 | R6: =NW!K12 -> 240.0549914 | S6: =NW!L12 -> 174.8260152 | T6: =NW!M12 -> 221.6549602
A7: 1 | B7: 01 | C7: 2017 | D7: 1 | E7: Kosten | F7: Variable Kosten | G7: Fertigmachen | H7: 1 | I7: =NW!B13 -> -343.1459169 | J7: =NW!C13 -> -322.0733659 | K7: =NW!D13 -> -449.8605763 | L7: =NW!E13 -> -402.4102962 | M7: =NW!F13 -> -533.5495963 | N7: =NW!G13 -> -440.1932155 | O7: =NW!H13 -> -358.421477 | P7: =NW!I13 -> -360.3417189 | Q7: =NW!J13 -> -364.5829615 | R7: =NW!K13 -> -444.4446698 | S7: =NW!L13 -> -323.6778795 | T7: =NW!M13 -> -410.3783262
A8: 1 | B8: 01 | C8: 2017 | D8: 1 | E8: Kosten | F8: Variable Kosten | G8: Kulanz | H8: 1 | I8: =NW!B14 -> 473.4142742 | J8: =NW!C14 -> 444.3419584 | K8: =NW!D14 -> 620.6409803 | L8: =NW!E14 -> 555.177168 | M8: =NW!F14 -> 736.1008319 | N8: =NW!G14 -> 607.3036028 | O8: =NW!H14 -> 494.4888896 | P8: =NW!I14 -> 497.1381122 | Q8: =NW!J14 -> 502.9894562 | R8: =NW!K14 -> 613.1690353 | S8: =NW!L14 -> 446.555593 | T8: =NW!M14 -> 566.1700982
A9: 1 | B9: 01 | C9: 2017 | D9: 1 | E9: Kosten | F9: Variable Kosten | G9: sonst. variable Kosten | H9: 1 | I9: =NW!B15 -> 0 | J9: =NW!C15 -> 0 | K9: =NW!D15 -> 0 | L9: =NW!E15 -> 0 | M9: =NW!F15 -> 0 | N9: =NW!G15 -> 0 | O9: =NW!H15 -> 0 | P9: =NW!I15 -> 0 | Q9: =NW!J15 -> 0 | R9: =NW!K15 -> 0 | S9: =NW!L15 -> 0 | T9: =NW!M15 -> 0
A10: 1 | B10: 01 | C10: 2017 | D10: 1 | E10: Kosten | F10: Direkte Kosten | G10: Personalkosten | H10: 1 | I10: =NW!B18 -> 5875 | J10: =NW!C18 -> 5875 | K10: =NW!D18 -> 5875 | L10: =NW!E18 -> 5875 | M10: =NW!F18 -> 5875 | N10: =NW!G18 -> 5875 | O10: =NW!H18 -> 5875 | P10: =NW!I18 -> 5875 | Q10: =NW!J18 -> 5875 | R10: =NW!K18 -> 5875 | S10: =NW!L18 -> 5875 | T10: =NW!M18 -> 5875
A11: 1 | B11: 01 | C11: 2017 | D11: 1 | E11: Kosten | F11: Direkte Kosten | G11: Werbekosten | H11: 1 | I11: =NW!B19 -> 1625 | J11: =NW!C19 -> 1625 | K11: =NW!D19 -> 1625 | L11: =NW!E19 -> 1625 | M11: =NW!F19 -> 1625 | N11: =NW!G19 -> 1625 | O11: =NW!H19 -> 1625 | P11: =NW!I19 -> 1625 | Q11: =NW!J19 -> 1625 | R11: =NW!K19 -> 1625 | S11: =NW!L19 -> 1625 | T11: =NW!M19 -> 1625
A12: 1 | B12: 01 | C12: 2017 | D12: 1 | E12: Kosten | F12: Direkte Kosten | G12: Fahrzeugkosten | H12: 1 | I12: =NW!B20 -> 4875 | J12: =NW!C20 -> 4875 | K12: =NW!D20 -> 4875 | L12: =NW!E20 -> 4875 | M12: =NW!F20 -> 4875 | N12: =NW!G20 -> 4875 | O12: =NW!H20 -> 4875 | P12: =NW!I20 -> 4875 | Q12: =NW!J20 -> 4875 | R12: =NW!K20 -> 4875 | S12: =NW!L20 -> 4875 | T12: =NW!M20 -> 4875
A13: 1 | B13: 01 | C13: 2017 | D13: 1 | E13: Kosten | F13: Direkte Kosten | G13: Abschreibungen | H13: 1 | I13: =NW!B21 -> 9500 | J13: =NW!C21 -> 9500 | K13: =NW!D21 -> 9500 | L13: =NW!E21 -> 9500 | M13: =NW!F21 -> 9500 | N13: =NW!G21 -> 9500 | O13: =NW!H21 -> 9500 | P13: =NW!I21 -> 9500 | Q13: =NW!J21 -> 9500 | R13: =NW!K21 -> 9500 | S13: =NW!L21 -> 9500 | T13: =NW!M21 -> 9500
A14: 1 | B14: 01 | C14: 2017 | D14: 1 | E14: Kosten | F14: Direkte Kosten | G14: Gemeinkosten | H14: 1 | I14: =NW!B22 -> 66.66666667 | J14: =NW!C22 -> 66.66666667 | K14: =NW!D22 -> 66.66666667 | L14: =NW!E22 -> 66.66666667 | M14: =NW!F22 -> 66.66666667 | N14: =NW!G22 -> 66.66666667 | O14: =NW!H22 -> 66.66666667 | P14: =NW!I22 -> 66.66666667 | Q14: =NW!J22 -> 66.66666667 | R14: =NW!K22 -> 66.66666667 | S14: =NW!L22 -> 66.66666667 | T14: =NW!M22 -> 66.66666667
A15: 1 | B15: 01 | C15: 2017 | D15: 2 | E15: verkaufte Stückzahlen | F15: VE Gebrauchtwagen | H15: 1 | I15: =GW!B3 -> 31.76555064 | J15: =GW!C3 -> 29.81483185 | K15: =GW!D3 -> 41.64429246 | L15: =GW!E3 -> 37.25174631 | M15: =GW!F3 -> 49.39151505 | N15: =GW!G3 -> 40.74936984 | O15: =GW!H3 -> 33.17963297 | P15: =GW!I3 -> 33.35739275 | Q15: =GW!J3 -> 33.75001116 | R15: =GW!K3 -> 41.14293358 | S15: =GW!L3 -> 29.96336417 | T15: =GW!M3 -> 37.98935922
A16: 1 | B16: 01 | C16: 2017 | D16: 2 | E16: Umsatzerlöse | F16: VE Gebrauchtwagen | H16: 1 | I16: =GW!B4*-1 -> -270007.1804 | J16: =GW!C4*-1 -> -253426.0707 | K16: =GW!D4*-1 -> -353976.4859 | L16: =GW!E4*-1 -> -316639.8436 | M16: =GW!F4*-1 -> -419827.878 | N16: =GW!G4*-1 -> -346369.6437 | O16: =GW!H4*-1 -> -282026.8802 | P16: =GW!I4*-1 -> -283537.8383 | Q16: =GW!J4*-1 -> -286875.0949 | R16: =GW!K4*-1 -> -349714.9354 | S16: =GW!L4*-1 -> -254688.5954 | T16: =GW!M4*-1 -> -322909.5534
A17: 1 | B17: 01 | C17: 2017 | D17: 2 | E17: Einsatzwerte | F17: EW Gebrauchtwagen | H17: 1 | I17: =GW!B6 -> 244896.5126 | J17: =GW!C6 -> 229857.4462 | K17: =GW!D6 -> 321056.6727 | L17: =GW!E6 -> 287192.3382 | M17: =GW!F6 -> 380783.8853 | N17: =GW!G6 -> 314157.2668 | O17: =GW!H6 -> 255798.3804 | P17: =GW!I6 -> 257168.8194 | Q17: =GW!J6 -> 260195.7111 | R17: =GW!K6 -> 317191.4464 | S17: =GW!L6 -> 231002.5561 | T17: =GW!M6 -> 292878.9649
A18: 1 | B18: 01 | C18: 2017 | D18: 2 | E18: Kosten | F18: Variable Kosten | G18: Fixum/Prov./Soz. | H18: 1 | I18: =GW!B11 -> 6205.641735 | J18: =GW!C11 -> 5824.553995 | K18: =GW!D11 -> 8135.529028 | L18: =GW!E11 -> 7277.411755 | M18: =GW!F11 -> 9649.007841 | N18: =GW!G11 -> 7960.699094 | O18: =GW!H11 -> 6481.893466 | P18: =GW!I11 -> 6516.620189 | Q18: =GW!J11 -> 6593.321181 | R18: =GW!K11 -> 8037.584761 | S18: =GW!L11 -> 5853.570912 | T18: =GW!M11 -> 7421.510043
A19: 1 | B19: 01 | C19: 2017 | D19: 2 | E19: Kosten | F19: Variable Kosten | G19: Provisionen | H19: 1 | I19: =GW!B12 -> 139.3237051 | J19: =GW!C12 -> 130.7678525 | K19: =GW!D12 -> 182.6518667 | L19: =GW!E12 -> 163.3861593 | M19: =GW!F12 -> 216.631185 | N19: =GW!G12 -> 178.7267361 | O19: =GW!H12 -> 145.5258702 | P19: =GW!I12 -> 146.3055246 | Q19: =GW!J12 -> 148.027549 | R19: =GW!K12 -> 180.4529067 | S19: =GW!L12 -> 131.4193153 | T19: =GW!M12 -> 166.6213296
A20: 1 | B20: 01 | C20: 2017 | D20: 2 | E20: Kosten | F20: Variable Kosten | G20: Fertigmachen | H20: 1 | I20: =GW!B13 -> 1287.514945 | J20: =GW!C13 -> 1208.448802 | K20: =GW!D13 -> 1687.918133 | L20: =GW!E13 -> 1509.880331 | M20: =GW!F13 -> 2001.92701 | N20: =GW!G13 -> 1651.645309 | O20: =GW!H13 -> 1344.830248 | P20: =GW!I13 -> 1352.035171 | Q20: =GW!J13 -> 1367.948702 | R20: =GW!K13 -> 1667.597155 | S20: =GW!L13 -> 1214.469084 | T20: =GW!M13 -> 1539.77711
A21: 1 | B21: 01 | C21: 2017 | D21: 2 | E21: Kosten | F21: Variable Kosten | G21: Kulanz | H21: 1 | I21: =GW!B14 -> 563.0316788 | J21: =GW!C14 -> 528.4559686 | K21: =GW!D14 -> 738.1284261 | L21: =GW!E14 -> 660.2723026 | M21: =GW!F14 -> 875.4448477 | N21: =GW!G14 -> 722.2662807 | O21: =GW!H14 -> 588.0957225 | P21: =GW!I14 -> 591.2464435 | Q21: =GW!J14 -> 598.2054479 | R21: =GW!K14 -> 729.2420405 | S21: =GW!L14 -> 531.0886446 | T21: =GW!M14 -> 673.3461965
A22: 1 | B22: 01 | C22: 2017 | D22: 2 | E22: Kosten | F22: Variable Kosten | G22: sonst. variable Kosten | H22: 1 | I22: =GW!B15 -> 0 | J22: =GW!C15 -> 0 | K22: =GW!D15 -> 0 | L22: =GW!E15 -> 0 | M22: =GW!F15 -> 0 | N22: =GW!G15 -> 0 | O22: =GW!H15 -> 0 | P22: =GW!I15 -> 0 | Q22: =GW!J15 -> 0 | R22: =GW!K15 -> 0 | S22: =GW!L15 -> 0 | T22: =GW!M15 -> 0
A23: 1 | B23: 01 | C23: 2017 | D23: 2 | E23: Kosten | F23: Direkte Kosten | G23: Personalkosten | H23: 1 | I23: =GW!B18 -> 3541.666667 | J23: =GW!C18 -> 3541.666667 | K23: =GW!D18 -> 3541.666667 | L23: =GW!E18 -> 3541.666667 | M23: =GW!F18 -> 3541.666667 | N23: =GW!G18 -> 3541.666667 | O23: =GW!H18 -> 3541.666667 | P23: =GW!I18 -> 3541.666667 | Q23: =GW!J18 -> 3541.666667 | R23: =GW!K18 -> 3541.666667 | S23: =GW!L18 -> 3541.666667 | T23: =GW!M18 -> 3541.666667
A24: 1 | B24: 01 | C24: 2017 | D24: 2 | E24: Kosten | F24: Direkte Kosten | G24: Werbekosten | H24: 1 | I24: =GW!B19 -> 58.33333333 | J24: =GW!C19 -> 58.33333333 | K24: =GW!D19 -> 58.33333333 | L24: =GW!E19 -> 58.33333333 | M24: =GW!F19 -> 58.33333333 | N24: =GW!G19 -> 58.33333333 | O24: =GW!H19 -> 58.33333333 | P24: =GW!I19 -> 58.33333333 | Q24: =GW!J19 -> 58.33333333 | R24: =GW!K19 -> 58.33333333 | S24: =GW!L19 -> 58.33333333 | T24: =GW!M19 -> 58.33333333
A25: 1 | B25: 01 | C25: 2017 | D25: 2 | E25: Kosten | F25: Direkte Kosten | G25: Fahrzeugkosten | H25: 1 | I25: =GW!B20 -> 250 | J25: =GW!C20 -> 250 | K25: =GW!D20 -> 250 | L25: =GW!E20 -> 250 | M25: =GW!F20 -> 250 | N25: =GW!G20 -> 250 | O25: =GW!H20 -> 250 | P25: =GW!I20 -> 250 | Q25: =GW!J20 -> 250 | R25: =GW!K20 -> 250 | S25: =GW!L20 -> 250 | T25: =GW!M20 -> 250
A26: 1 | B26: 01 | C26: 2017 | D26: 2 | E26: Kosten | F26: Direkte Kosten | G26: Abschreibungen | H26: 1 | I26: =GW!B21 -> 0 | J26: =GW!C21 -> 0 | K26: =GW!D21 -> 0 | L26: =GW!E21 -> 0 | M26: =GW!F21 -> 0 | N26: =GW!G21 -> 0 | O26: =GW!H21 -> 0 | P26: =GW!I21 -> 0 | Q26: =GW!J21 -> 0 | R26: =GW!K21 -> 0 | S26: =GW!L21 -> 0 | T26: =GW!M21 -> 0
A27: 1 | B27: 01 | C27: 2017 | D27: 2 | E27: Kosten | F27: Direkte Kosten | G27: Gemeinkosten | H27: 1 | I27: =GW!B22 -> 0 | J27: =GW!C22 -> 0 | K27: =GW!D22 -> 0 | L27: =GW!E22 -> 0 | M27: =GW!F22 -> 0 | N27: =GW!G22 -> 0 | O27: =GW!H22 -> 0 | P27: =GW!I22 -> 0 | Q27: =GW!J22 -> 0 | R27: =GW!K22 -> 0 | S27: =GW!L22 -> 0 | T27: =GW!M22 -> 0
A28: 1 | B28: 01 | C28: 2017 | D28: 3 | E28: verkaufte Stückzahlen | F28: VE Service | G28: VE Mechanik | H28: 1 | I28: =ME!B3 -> 995.8294437 | J28: =ME!C3 -> 879.2710486 | K28: =ME!D3 -> 1209.685376 | L28: =ME!E3 -> 1288.791996 | M28: =ME!F3 -> 1078.994731 | N28: =ME!G3 -> 1183.092042 | O28: =ME!H3 -> 1050.601767 | P28: =ME!I3 -> 1092.829094 | Q28: =ME!J3 -> 997.3625882 | R28: =ME!K3 -> 1415.42073 | S28: =ME!L3 -> 1380.651142 | T28: =ME!M3 -> 1177.470041
A29: 1 | B29: 01 | C29: 2017 | D29: 3 | E29: Umsatzerlöse | F29: VE Service | G29: VE Mechanik | H29: 1 | I29: =ME!B4*-1 -> -65027.66268 | J29: =ME!C4*-1 -> -57416.39947 | K29: =ME!D4*-1 -> -78992.45504 | L29: =ME!E4*-1 -> -84158.11733 | M29: =ME!F4*-1 -> -70458.35596 | N29: =ME!G4*-1 -> -77255.91032 | O29: =ME!H4*-1 -> -68604.29538 | P29: =ME!I4*-1 -> -71361.73985 | Q29: =ME!J4*-1 -> -65127.77701 | R29: =ME!K4*-1 -> -92426.97364 | S29: =ME!L4*-1 -> -90156.5196 | T29: =ME!M4*-1 -> -76888.79371
A30: 1 | B30: 01 | C30: 2017 | D30: 3 | E30: Einsatzwerte | F30: EW Service | G30: EW Mechanik | H30: 1 | I30: =ME!B6 -> 15606.63904 | J30: =ME!C6 -> 13779.93587 | K30: =ME!D6 -> 18958.18921 | L30: =ME!E6 -> 20197.94816 | M30: =ME!F6 -> 16910.00543 | N30: =ME!G6 -> 18541.41848 | O30: =ME!H6 -> 16465.03089 | P30: =ME!I6 -> 17126.81756 | Q30: =ME!J6 -> 15630.66648 | R30: =ME!K6 -> 22182.47367 | S30: =ME!L6 -> 21637.5647 | T30: =ME!M6 -> 18453.31049
A31: 1 | B31: 01 | C31: 2017 | D31: 3 | E31: Kosten | F31: Variable Kosten | G31: Fixum/Prov./Soz. | H31: 1 | I31: =ME!B11 -> 0 | J31: =ME!C11 -> 0 | K31: =ME!D11 -> 0 | L31: =ME!E11 -> 0 | M31: =ME!F11 -> 0 | N31: =ME!G11 -> 0 | O31: =ME!H11 -> 0 | P31: =ME!I11 -> 0 | Q31: =ME!J11 -> 0 | R31: =ME!K11 -> 0 | S31: =ME!L11 -> 0 | T31: =ME!M11 -> 0
A32: 1 | B32: 01 | C32: 2017 | D32: 3 | E32: Kosten | F32: Variable Kosten | G32: Provisionen | H32: 1 | I32: =ME!B12 -> 0 | J32: =ME!C12 -> 0 | K32: =ME!D12 -> 0 | L32: =ME!E12 -> 0 | M32: =ME!F12 -> 0 | N32: =ME!G12 -> 0 | O32: =ME!H12 -> 0 | P32: =ME!I12 -> 0 | Q32: =ME!J12 -> 0 | R32: =ME!K12 -> 0 | S32: =ME!L12 -> 0 | T32: =ME!M12 -> 0
A33: 1 | B33: 01 | C33: 2017 | D33: 3 | E33: Kosten | F33: Variable Kosten | G33: Fertigmachen | H33: 1 | I33: =ME!B13 -> 0 | J33: =ME!C13 -> 0 | K33: =ME!D13 -> 0 | L33: =ME!E13 -> 0 | M33: =ME!F13 -> 0 | N33: =ME!G13 -> 0 | O33: =ME!H13 -> 0 | P33: =ME!I13 -> 0 | Q33: =ME!J13 -> 0 | R33: =ME!K13 -> 0 | S33: =ME!L13 -> 0 | T33: =ME!M13 -> 0
A34: 1 | B34: 01 | C34: 2017 | D34: 3 | E34: Kosten | F34: Variable Kosten | G34: Kulanz | H34: 1 | I34: =ME!B14 -> 1774.387009 | J34: =ME!C14 -> 1566.701141 | K34: =ME!D14 -> 2155.439397 | L34: =ME!E14 -> 2296.393011 | M34: =ME!F14 -> 1922.572431 | N34: =ME!G14 -> 2108.054911 | O34: =ME!H14 -> 1871.98133 | P34: =ME!I14 -> 1947.22275 | Q34: =ME!J14 -> 1777.118794 | R34: =ME!K14 -> 2522.022391 | S34: =ME!L14 -> 2460.069308 | T34: =ME!M14 -> 2098.037528
A35: 1 | B35: 01 | C35: 2017 | D35: 3 | E35: Kosten | F35: Variable Kosten | G35: sonst. variable Kosten | H35: 1 | I35: =ME!B15 -> 0 | J35: =ME!C15 -> 0 | K35: =ME!D15 -> 0 | L35: =ME!E15 -> 0 | M35: =ME!F15 -> 0 | N35: =ME!G15 -> 0 | O35: =ME!H15 -> 0 | P35: =ME!I15 -> 0 | Q35: =ME!J15 -> 0 | R35: =ME!K15 -> 0 | S35: =ME!L15 -> 0 | T35: =ME!M15 -> 0
A36: 1 | B36: 01 | C36: 2017 | D36: 3 | E36: Kosten | F36: Direkte Kosten | G36: Personalkosten | H36: 1 | I36: =ME!B18 -> 29294.74167 | J36: =ME!C18 -> 29294.74167 | K36: =ME!D18 -> 29294.74167 | L36: =ME!E18 -> 29294.74167 | M36: =ME!F18 -> 29294.74167 | N36: =ME!G18 -> 29294.74167 | O36: =ME!H18 -> 29294.74167 | P36: =ME!I18 -> 29294.74167 | Q36: =ME!J18 -> 29294.74167 | R36: =ME!K18 -> 29294.74167 | S36: =ME!L18 -> 29294.74167 | T36: =ME!M18 -> 29294.74167
A37: 1 | B37: 01 | C37: 2017 | D37: 3 | E37: Kosten | F37: Direkte Kosten | G37: Werbekosten | H37: 1 | I37: =ME!B19 -> 1106.895833 | J37: =ME!C19 -> 1106.895833 | K37: =ME!D19 -> 1106.895833 | L37: =ME!E19 -> 1106.895833 | M37: =ME!F19 -> 1106.895833 | N37: =ME!G19 -> 1106.895833 | O37: =ME!H19 -> 1106.895833 | P37: =ME!I19 -> 1106.895833 | Q37: =ME!J19 -> 1106.895833 | R37: =ME!K19 -> 1106.895833 | S37: =ME!L19 -> 1106.895833 | T37: =ME!M19 -> 1106.895833
A38: 1 | B38: 01 | C38: 2017 | D38: 3 | E38: Kosten | F38: Direkte Kosten | G38: Fahrzeugkosten | H38: 1 | I38: =ME!B20 -> 571.6208333 | J38: =ME!C20 -> 571.6208333 | K38: =ME!D20 -> 571.6208333 | L38: =ME!E20 -> 571.6208333 | M38: =ME!F20 -> 571.6208333 | N38: =ME!G20 -> 571.6208333 | O38: =ME!H20 -> 571.6208333 | P38: =ME!I20 -> 571.6208333 | Q38: =ME!J20 -> 571.6208333 | R38: =ME!K20 -> 571.6208333 | S38: =ME!L20 -> 571.6208333 | T38: =ME!M20 -> 571.6208333
A39: 1 | B39: 01 | C39: 2017 | D39: 3 | E39: Kosten | F39: Direkte Kosten | G39: Abschreibungen | H39: 1 | I39: =ME!B21 -> 0 | J39: =ME!C21 -> 0 | K39: =ME!D21 -> 0 | L39: =ME!E21 -> 0 | M39: =ME!F21 -> 0 | N39: =ME!G21 -> 0 | O39: =ME!H21 -> 0 | P39: =ME!I21 -> 0 | Q39: =ME!J21 -> 0 | R39: =ME!K21 -> 0 | S39: =ME!L21 -> 0 | T39: =ME!M21 -> 0
A40: 1 | B40: 01 | C40: 2017 | D40: 3 | E40: Kosten | F40: Direkte Kosten | G40: Gemeinkosten | H40: 1 | I40: =ME!B22 -> 2068.408333 | J40: =ME!C22 -> 2068.408333 | K40: =ME!D22 -> 2068.408333 | L40: =ME!E22 -> 2068.408333 | M40: =ME!F22 -> 2068.408333 | N40: =ME!G22 -> 2068.408333 | O40: =ME!H22 -> 2068.408333 | P40: =ME!I22 -> 2068.408333 | Q40: =ME!J22 -> 2068.408333 | R40: =ME!K22 -> 2068.408333 | S40: =ME!L22 -> 2068.408333 | T40: =ME!M22 -> 2068.408333
A41: 1 | B41: 01 | C41: 2017 | D41: 4 | E41: verkaufte Stückzahlen | F41: VE Service | G41: VE Karosserie | H41: 1 | I41: =KA!B3 -> 177.4387009 | J41: =KA!C3 -> 156.6701141 | K41: =KA!D3 -> 215.5439397 | L41: =KA!E3 -> 229.6393011 | M41: =KA!F3 -> 192.2572431 | N41: =KA!G3 -> 210.8054911 | O41: =KA!H3 -> 187.198133 | P41: =KA!I3 -> 194.722275 | Q41: =KA!J3 -> 177.7118794 | R41: =KA!K3 -> 252.2022391 | S41: =KA!L3 -> 246.0069308 | T41: =KA!M3 -> 209.8037528
A42: 1 | B42: 01 | C42: 2017 | D42: 4 | E42: Umsatzerlöse | F42: VE Service | G42: VE Karosserie | H42: 1 | I42: =KA!B4*-1 -> -19819.90289 | J42: =KA!C4*-1 -> -17500.05175 | K42: =KA!D4*-1 -> -24076.25806 | L42: =KA!E4*-1 -> -25650.70993 | M42: =KA!F4*-1 -> -21475.13405 | N42: =KA!G4*-1 -> -23546.97335 | O42: =KA!H4*-1 -> -20910.03146 | P42: =KA!I4*-1 -> -21750.47811 | Q42: =KA!J4*-1 -> -19850.41692 | R42: =KA!K4*-1 -> -28170.99011 | S42: =KA!L4*-1 -> -27478.97417 | T42: =KA!M4*-1 -> -23435.07919
A43: 1 | B43: 01 | C43: 2017 | D43: 4 | E43: Einsatzwerte | F43: EW Service | G43: EW Karosserie | H43: 1 | I43: =KA!B6 -> 3389.203394 | J43: =KA!C6 -> 2992.508849 | K43: =KA!D6 -> 4117.040129 | L43: =KA!E6 -> 4386.271398 | M43: =KA!F6 -> 3672.247922 | N43: =KA!G6 -> 4026.532443 | O43: =KA!H6 -> 3575.615379 | P43: =KA!I6 -> 3719.331757 | Q43: =KA!J6 -> 3394.421294 | R43: =KA!K6 -> 4817.239308 | S43: =KA!L6 -> 4698.904584 | T43: =KA!M6 -> 4007.398542
A44: 1 | B44: 01 | C44: 2017 | D44: 4 | E44: Kosten | F44: Variable Kosten | G44: Fixum/Prov./Soz. | H44: 1 | I44: =KA!B11 -> 0 | J44: =KA!C11 -> 0 | K44: =KA!D11 -> 0 | L44: =KA!E11 -> 0 | M44: =KA!F11 -> 0 | N44: =KA!G11 -> 0 | O44: =KA!H11 -> 0 | P44: =KA!I11 -> 0 | Q44: =KA!J11 -> 0 | R44: =KA!K11 -> 0 | S44: =KA!L11 -> 0 | T44: =KA!M11 -> 0
A45: 1 | B45: 01 | C45: 2017 | D45: 4 | E45: Kosten | F45: Variable Kosten | G45: Provisionen | H45: 1 | I45: =KA!B12 -> 0 | J45: =KA!C12 -> 0 | K45: =KA!D12 -> 0 | L45: =KA!E12 -> 0 | M45: =KA!F12 -> 0 | N45: =KA!G12 -> 0 | O45: =KA!H12 -> 0 | P45: =KA!I12 -> 0 | Q45: =KA!J12 -> 0 | R45: =KA!K12 -> 0 | S45: =KA!L12 -> 0 | T45: =KA!M12 -> 0
A46: 1 | B46: 01 | C46: 2017 | D46: 4 | E46: Kosten | F46: Variable Kosten | G46: Fertigmachen | H46: 1 | I46: =KA!B13 -> 0 | J46: =KA!C13 -> 0 | K46: =KA!D13 -> 0 | L46: =KA!E13 -> 0 | M46: =KA!F13 -> 0 | N46: =KA!G13 -> 0 | O46: =KA!H13 -> 0 | P46: =KA!I13 -> 0 | Q46: =KA!J13 -> 0 | R46: =KA!K13 -> 0 | S46: =KA!L13 -> 0 | T46: =KA!M13 -> 0
A47: 1 | B47: 01 | C47: 2017 | D47: 4 | E47: Kosten | F47: Variable Kosten | G47: Kulanz | H47: 1 | I47: =KA!B14 -> 43.45437573 | J47: =KA!C14 -> 38.36819121 | K47: =KA!D14 -> 52.78627094 | L47: =KA!E14 -> 56.23819618 | M47: =KA!F14 -> 47.08340646 | N47: =KA!G14 -> 51.62583455 | O47: =KA!H14 -> 45.84444074 | P47: =KA!I14 -> 47.68708775 | Q47: =KA!J14 -> 43.52127658 | R47: =KA!K14 -> 61.76381365 | S47: =KA!L14 -> 60.24659531 | T47: =KA!M14 -> 51.3805109
A48: 1 | B48: 01 | C48: 2017 | D48: 4 | E48: Kosten | F48: Variable Kosten | G48: sonst. variable Kosten | H48: 1 | I48: =KA!B15 -> 0 | J48: =KA!C15 -> 0 | K48: =KA!D15 -> 0 | L48: =KA!E15 -> 0 | M48: =KA!F15 -> 0 | N48: =KA!G15 -> 0 | O48: =KA!H15 -> 0 | P48: =KA!I15 -> 0 | Q48: =KA!J15 -> 0 | R48: =KA!K15 -> 0 | S48: =KA!L15 -> 0 | T48: =KA!M15 -> 0
A49: 1 | B49: 01 | C49: 2017 | D49: 4 | E49: Kosten | F49: Direkte Kosten | G49: Personalkosten | H49: 1 | I49: =KA!B18 -> 2524 | J49: =KA!C18 -> 2524 | K49: =KA!D18 -> 2524 | L49: =KA!E18 -> 2524 | M49: =KA!F18 -> 2524 | N49: =KA!G18 -> 2524 | O49: =KA!H18 -> 2524 | P49: =KA!I18 -> 2524 | Q49: =KA!J18 -> 2524 | R49: =KA!K18 -> 2524 | S49: =KA!L18 -> 2524 | T49: =KA!M18 -> 2524
A50: 1 | B50: 01 | C50: 2017 | D50: 4 | E50: Kosten | F50: Direkte Kosten | G50: Werbekosten | H50: 1 | I50: =KA!B19 -> 0 | J50: =KA!C19 -> 0 | K50: =KA!D19 -> 0 | L50: =KA!E19 -> 0 | M50: =KA!F19 -> 0 | N50: =KA!G19 -> 0 | O50: =KA!H19 -> 0 | P50: =KA!I19 -> 0 | Q50: =KA!J19 -> 0 | R50: =KA!K19 -> 0 | S50: =KA!L19 -> 0 | T50: =KA!M19 -> 0
A51: 1 | B51: 01 | C51: 2017 | D51: 4 | E51: Kosten | F51: Direkte Kosten | G51: Fahrzeugkosten | H51: 1 | I51: =KA!B20 -> 0 | J51: =KA!C20 -> 0 | K51: =KA!D20 -> 0 | L51: =KA!E20 -> 0 | M51: =KA!F20 -> 0 | N51: =KA!G20 -> 0 | O51: =KA!H20 -> 0 | P51: =KA!I20 -> 0 | Q51: =KA!J20 -> 0 | R51: =KA!K20 -> 0 | S51: =KA!L20 -> 0 | T51: =KA!M20 -> 0
A52: 1 | B52: 01 | C52: 2017 | D52: 4 | E52: Kosten | F52: Direkte Kosten | G52: Abschreibungen | H52: 1 | I52: =KA!B21 -> 0 | J52: =KA!C21 -> 0 | K52: =KA!D21 -> 0 | L52: =KA!E21 -> 0 | M52: =KA!F21 -> 0 | N52: =KA!G21 -> 0 | O52: =KA!H21 -> 0 | P52: =KA!I21 -> 0 | Q52: =KA!J21 -> 0 | R52: =KA!K21 -> 0 | S52: =KA!L21 -> 0 | T52: =KA!M21 -> 0
A53: 1 | B53: 01 | C53: 2017 | D53: 4 | E53: Kosten | F53: Direkte Kosten | G53: Gemeinkosten | H53: 1 | I53: =KA!B22 -> 809.3333333 | J53: =KA!C22 -> 809.3333333 | K53: =KA!D22 -> 809.3333333 | L53: =KA!E22 -> 809.3333333 | M53: =KA!F22 -> 809.3333333 | N53: =KA!G22 -> 809.3333333 | O53: =KA!H22 -> 809.3333333 | P53: =KA!I22 -> 809.3333333 | Q53: =KA!J22 -> 809.3333333 | R53: =KA!K22 -> 809.3333333 | S53: =KA!L22 -> 809.3333333 | T53: =KA!M22 -> 809.3333333
A54: 1 | B54: 01 | C54: 2017 | D54: 5 | E54: verkaufte Stückzahlen | F54: VE Service | G54: VE Lackiererei | H54: 1 | I54: =LA!B3 -> 161.5054298 | J54: =LA!C3 -> 142.6017773 | K54: =LA!D3 -> 196.1889737 | L54: =LA!E3 -> 209.0186292 | M54: =LA!F3 -> 174.9933274 | N54: =LA!G3 -> 191.8760184 | O54: =LA!H3 -> 170.3885048 | P54: =LA!I3 -> 177.2370095 | Q54: =LA!J3 -> 161.7540779 | R54: =LA!K3 -> 229.5555074 | S54: =LA!L3 -> 223.9165126 | T54: =LA!M3 -> 190.9642322
A55: 1 | B55: 01 | C55: 2017 | D55: 5 | E55: Umsatzerlöse | F55: VE Service | G55: VE Lackiererei | H55: 1 | I55: =LA!B4*-1 -> -33465.54011 | J55: =LA!C4*-1 -> -29548.51428 | K55: =LA!D4*-1 -> -40652.31723 | L55: =LA!E4*-1 -> -43310.75015 | M55: =LA!F4*-1 -> -36260.36736 | N55: =LA!G4*-1 -> -39758.62977 | O55: =LA!H4*-1 -> -35306.20207 | P55: =LA!I4*-1 -> -36725.28073 | Q55: =LA!J4*-1 -> -33517.06249 | R55: =LA!K4*-1 -> -47566.19669 | S55: =LA!L4*-1 -> -46397.74057 | T55: =LA!M4*-1 -> -39569.69855
A56: 1 | B56: 01 | C56: 2017 | D56: 5 | E56: Einsatzwerte | F56: EW Service | G56: EW Lackiererei | H56: 1 | I56: =LA!B6 -> 13085.02618 | J56: =LA!C6 -> 11553.46908 | K56: =LA!D6 -> 15895.05604 | L56: =LA!E6 -> 16934.50331 | M56: =LA!F6 -> 14177.80364 | N56: =LA!G6 -> 15545.62424 | O56: =LA!H6 -> 13804.72501 | P56: =LA!I6 -> 14359.58477 | Q56: =LA!J6 -> 13105.17143 | R56: =LA!K6 -> 18598.38291 | S56: =LA!L6 -> 18141.51656 | T56: =LA!M6 -> 15471.75213
A57: 1 | B57: 01 | C57: 2017 | D57: 5 | E57: Kosten | F57: Variable Kosten | G57: Fixum/Prov./Soz. | H57: 1 | I57: =LA!B11 -> 0 | J57: =LA!C11 -> 0 | K57: =LA!D11 -> 0 | L57: =LA!E11 -> 0 | M57: =LA!F11 -> 0 | N57: =LA!G11 -> 0 | O57: =LA!H11 -> 0 | P57: =LA!I11 -> 0 | Q57: =LA!J11 -> 0 | R57: =LA!K11 -> 0 | S57: =LA!L11 -> 0 | T57: =LA!M11 -> 0
A58: 1 | B58: 01 | C58: 2017 | D58: 5 | E58: Kosten | F58: Variable Kosten | G58: Provisionen | H58: 1 | I58: =LA!B12 -> 0 | J58: =LA!C12 -> 0 | K58: =LA!D12 -> 0 | L58: =LA!E12 -> 0 | M58: =LA!F12 -> 0 | N58: =LA!G12 -> 0 | O58: =LA!H12 -> 0 | P58: =LA!I12 -> 0 | Q58: =LA!J12 -> 0 | R58: =LA!K12 -> 0 | S58: =LA!L12 -> 0 | T58: =LA!M12 -> 0
A59: 1 | B59: 01 | C59: 2017 | D59: 5 | E59: Kosten | F59: Variable Kosten | G59: Fertigmachen | H59: 1 | I59: =LA!B13 -> 0 | J59: =LA!C13 -> 0 | K59: =LA!D13 -> 0 | L59: =LA!E13 -> 0 | M59: =LA!F13 -> 0 | N59: =LA!G13 -> 0 | O59: =LA!H13 -> 0 | P59: =LA!I13 -> 0 | Q59: =LA!J13 -> 0 | R59: =LA!K13 -> 0 | S59: =LA!L13 -> 0 | T59: =LA!M13 -> 0
A60: 1 | B60: 01 | C60: 2017 | D60: 5 | E60: Kosten | F60: Variable Kosten | G60: Kulanz | H60: 1 | I60: =LA!B14 -> 0 | J60: =LA!C14 -> 0 | K60: =LA!D14 -> 0 | L60: =LA!E14 -> 0 | M60: =LA!F14 -> 0 | N60: =LA!G14 -> 0 | O60: =LA!H14 -> 0 | P60: =LA!I14 -> 0 | Q60: =LA!J14 -> 0 | R60: =LA!K14 -> 0 | S60: =LA!L14 -> 0 | T60: =LA!M14 -> 0
A61: 1 | B61: 01 | C61: 2017 | D61: 5 | E61: Kosten | F61: Variable Kosten | G61: sonst. variable Kosten | H61: 1 | I61: =LA!B15 -> 0 | J61: =LA!C15 -> 0 | K61: =LA!D15 -> 0 | L61: =LA!E15 -> 0 | M61: =LA!F15 -> 0 | N61: =LA!G15 -> 0 | O61: =LA!H15 -> 0 | P61: =LA!I15 -> 0 | Q61: =LA!J15 -> 0 | R61: =LA!K15 -> 0 | S61: =LA!L15 -> 0 | T61: =LA!M15 -> 0
A62: 1 | B62: 01 | C62: 2017 | D62: 5 | E62: Kosten | F62: Direkte Kosten | G62: Personalkosten | H62: 1 | I62: =LA!B18 -> 5411.813333 | J62: =LA!C18 -> 5411.813333 | K62: =LA!D18 -> 5411.813333 | L62: =LA!E18 -> 5411.813333 | M62: =LA!F18 -> 5411.813333 | N62: =LA!G18 -> 5411.813333 | O62: =LA!H18 -> 5411.813333 | P62: =LA!I18 -> 5411.813333 | Q62: =LA!J18 -> 5411.813333 | R62: =LA!K18 -> 5411.813333 | S62: =LA!L18 -> 5411.813333 | T62: =LA!M18 -> 5411.813333
A63: 1 | B63: 01 | C63: 2017 | D63: 5 | E63: Kosten | F63: Direkte Kosten | G63: Werbekosten | H63: 1 | I63: =LA!B19 -> 0 | J63: =LA!C19 -> 0 | K63: =LA!D19 -> 0 | L63: =LA!E19 -> 0 | M63: =LA!F19 -> 0 | N63: =LA!G19 -> 0 | O63: =LA!H19 -> 0 | P63: =LA!I19 -> 0 | Q63: =LA!J19 -> 0 | R63: =LA!K19 -> 0 | S63: =LA!L19 -> 0 | T63: =LA!M19 -> 0
A64: 1 | B64: 01 | C64: 2017 | D64: 5 | E64: Kosten | F64: Direkte Kosten | G64: Fahrzeugkosten | H64: 1 | I64: =LA!B20 -> 119.0366667 | J64: =LA!C20 -> 119.0366667 | K64: =LA!D20 -> 119.0366667 | L64: =LA!E20 -> 119.0366667 | M64: =LA!F20 -> 119.0366667 | N64: =LA!G20 -> 119.0366667 | O64: =LA!H20 -> 119.0366667 | P64: =LA!I20 -> 119.0366667 | Q64: =LA!J20 -> 119.0366667 | R64: =LA!K20 -> 119.0366667 | S64: =LA!L20 -> 119.0366667 | T64: =LA!M20 -> 119.0366667
A65: 1 | B65: 01 | C65: 2017 | D65: 5 | E65: Kosten | F65: Direkte Kosten | G65: Abschreibungen | H65: 1 | I65: =LA!B21 -> 0 | J65: =LA!C21 -> 0 | K65: =LA!D21 -> 0 | L65: =LA!E21 -> 0 | M65: =LA!F21 -> 0 | N65: =LA!G21 -> 0 | O65: =LA!H21 -> 0 | P65: =LA!I21 -> 0 | Q65: =LA!J21 -> 0 | R65: =LA!K21 -> 0 | S65: =LA!L21 -> 0 | T65: =LA!M21 -> 0
A66: 1 | B66: 01 | C66: 2017 | D66: 5 | E66: Kosten | F66: Direkte Kosten | G66: Gemeinkosten | H66: 1 | I66: =LA!B22 -> 1727.483333 | J66: =LA!C22 -> 1727.483333 | K66: =LA!D22 -> 1727.483333 | L66: =LA!E22 -> 1727.483333 | M66: =LA!F22 -> 1727.483333 | N66: =LA!G22 -> 1727.483333 | O66: =LA!H22 -> 1727.483333 | P66: =LA!I22 -> 1727.483333 | Q66: =LA!J22 -> 1727.483333 | R66: =LA!K22 -> 1727.483333 | S66: =LA!L22 -> 1727.483333 | T66: =LA!M22 -> 1727.483333
A67: 1 | B67: 01 | C67: 2017 | D67: 6 | E67: Umsatzerlöse | F67: VE Teile | H67: 1 | I67: ='T&Z'!B4*-1 -> -126595.0231 | J67: ='T&Z'!C4*-1 -> -111777.5131 | K67: ='T&Z'!D4*-1 -> -153781.5025 | L67: ='T&Z'!E4*-1 -> -163837.9478 | M67: ='T&Z'!F4*-1 -> -137167.4274 | N67: ='T&Z'!G4*-1 -> -150400.8194 | O67: ='T&Z'!H4*-1 -> -133557.9659 | P67: ='T&Z'!I4*-1 -> -138926.1236 | Q67: ='T&Z'!J4*-1 -> -126789.9244 | R67: ='T&Z'!K4*-1 -> -179935.6517 | S67: ='T&Z'!L4*-1 -> -175515.5608 | T67: ='T&Z'!M4*-1 -> -149686.1215
A68: 1 | B68: 01 | C68: 2017 | D68: 6 | E68: Einsatzwerte | F68: EW Service | H68: 1 | I68: ='T&Z'!B5 -> 81653.78988 | J68: ='T&Z'!C5 -> 72096.49594 | K68: ='T&Z'!D5 -> 99189.06909 | L68: ='T&Z'!E5 -> 105675.4763 | M68: ='T&Z'!F5 -> 88472.99067 | N68: ='T&Z'!G5 -> 97008.52851 | O68: ='T&Z'!H5 -> 86144.88803 | P68: ='T&Z'!I5 -> 89607.34972 | Q68: ='T&Z'!J5 -> 81779.50122 | R68: ='T&Z'!K5 -> 116058.4953 | S68: ='T&Z'!L5 -> 113207.5367 | T68: ='T&Z'!M5 -> 96547.54834
A69: 1 | B69: 01 | C69: 2017 | D69: 6 | E69: Kosten | F69: Variable Kosten | G69: Fixum/Prov./Soz. | H69: 1 | I69: ='T&Z'!B9 -> 0 | J69: ='T&Z'!C9 -> 0 | K69: ='T&Z'!D9 -> 0 | L69: ='T&Z'!E9 -> 0 | M69: ='T&Z'!F9 -> 0 | N69: ='T&Z'!G9 -> 0 | O69: ='T&Z'!H9 -> 0 | P69: ='T&Z'!I9 -> 0 | Q69: ='T&Z'!J9 -> 0 | R69: ='T&Z'!K9 -> 0 | S69: ='T&Z'!L9 -> 0 | T69: ='T&Z'!M9 -> 0
A70: 1 | B70: 01 | C70: 2017 | D70: 6 | E70: Kosten | F70: Variable Kosten | G70: Provisionen | H70: 1 | I70: ='T&Z'!B10 -> 0 | J70: ='T&Z'!C10 -> 0 | K70: ='T&Z'!D10 -> 0 | L70: ='T&Z'!E10 -> 0 | M70: ='T&Z'!F10 -> 0 | N70: ='T&Z'!G10 -> 0 | O70: ='T&Z'!H10 -> 0 | P70: ='T&Z'!I10 -> 0 | Q70: ='T&Z'!J10 -> 0 | R70: ='T&Z'!K10 -> 0 | S70: ='T&Z'!L10 -> 0 | T70: ='T&Z'!M10 -> 0
A71: 1 | B71: 01 | C71: 2017 | D71: 6 | E71: Kosten | F71: Variable Kosten | G71: Fertigmachen | H71: 1 | I71: ='T&Z'!B11 -> 0 | J71: ='T&Z'!C11 -> 0 | K71: ='T&Z'!D11 -> 0 | L71: ='T&Z'!E11 -> 0 | M71: ='T&Z'!F11 -> 0 | N71: ='T&Z'!G11 -> 0 | O71: ='T&Z'!H11 -> 0 | P71: ='T&Z'!I11 -> 0 | Q71: ='T&Z'!J11 -> 0 | R71: ='T&Z'!K11 -> 0 | S71: ='T&Z'!L11 -> 0 | T71: ='T&Z'!M11 -> 0
A72: 1 | B72: 01 | C72: 2017 | D72: 6 | E72: Kosten | F72: Variable Kosten | G72: Kulanz | H72: 1 | I72: ='T&Z'!B12 -> 1412.267211 | J72: ='T&Z'!C12 -> 1246.966214 | K72: ='T&Z'!D12 -> 1715.553806 | L72: ='T&Z'!E12 -> 1827.741376 | M72: ='T&Z'!F12 -> 1530.21071 | N72: ='T&Z'!G12 -> 1677.839623 | O72: ='T&Z'!H12 -> 1489.944324 | P72: ='T&Z'!I12 -> 1549.830352 | Q72: ='T&Z'!J12 -> 1414.441489 | R72: ='T&Z'!K12 -> 2007.323944 | S72: ='T&Z'!L12 -> 1958.014348 | T72: ='T&Z'!M12 -> 1669.866604
A73: 1 | B73: 01 | C73: 2017 | D73: 6 | E73: Kosten | F73: Variable Kosten | G73: sonst. variable Kosten | H73: 1 | I73: ='T&Z'!B13 -> 0 | J73: ='T&Z'!C13 -> 0 | K73: ='T&Z'!D13 -> 0 | L73: ='T&Z'!E13 -> 0 | M73: ='T&Z'!F13 -> 0 | N73: ='T&Z'!G13 -> 0 | O73: ='T&Z'!H13 -> 0 | P73: ='T&Z'!I13 -> 0 | Q73: ='T&Z'!J13 -> 0 | R73: ='T&Z'!K13 -> 0 | S73: ='T&Z'!L13 -> 0 | T73: ='T&Z'!M13 -> 0
A74: 1 | B74: 01 | C74: 2017 | D74: 6 | E74: Kosten | F74: Direkte Kosten | G74: Personalkosten | H74: 1 | I74: ='T&Z'!B16 -> 21133.96667 | J74: ='T&Z'!C16 -> 21133.96667 | K74: ='T&Z'!D16 -> 21133.96667 | L74: ='T&Z'!E16 -> 21133.96667 | M74: ='T&Z'!F16 -> 21133.96667 | N74: ='T&Z'!G16 -> 21133.96667 | O74: ='T&Z'!H16 -> 21133.96667 | P74: ='T&Z'!I16 -> 21133.96667 | Q74: ='T&Z'!J16 -> 21133.96667 | R74: ='T&Z'!K16 -> 21133.96667 | S74: ='T&Z'!L16 -> 21133.96667 | T74: ='T&Z'!M16 -> 21133.96667
A75: 1 | B75: 01 | C75: 2017 | D75: 6 | E75: Kosten | F75: Direkte Kosten | G75: Werbekosten | H75: 1 | I75: ='T&Z'!B17 -> 53.54166667 | J75: ='T&Z'!C17 -> 53.54166667 | K75: ='T&Z'!D17 -> 53.54166667 | L75: ='T&Z'!E17 -> 53.54166667 | M75: ='T&Z'!F17 -> 53.54166667 | N75: ='T&Z'!G17 -> 53.54166667 | O75: ='T&Z'!H17 -> 53.54166667 | P75: ='T&Z'!I17 -> 53.54166667 | Q75: ='T&Z'!J17 -> 53.54166667 | R75: ='T&Z'!K17 -> 53.54166667 | S75: ='T&Z'!L17 -> 53.54166667 | T75: ='T&Z'!M17 -> 53.54166667
A76: 1 | B76: 01 | C76: 2017 | D76: 6 | E76: Kosten | F76: Direkte Kosten | G76: Fahrzeugkosten | H76: 1 | I76: ='T&Z'!B18 -> 104.9416667 | J76: ='T&Z'!C18 -> 104.9416667 | K76: ='T&Z'!D18 -> 104.9416667 | L76: ='T&Z'!E18 -> 104.9416667 | M76: ='T&Z'!F18 -> 104.9416667 | N76: ='T&Z'!G18 -> 104.9416667 | O76: ='T&Z'!H18 -> 104.9416667 | P76: ='T&Z'!I18 -> 104.9416667 | Q76: ='T&Z'!J18 -> 104.9416667 | R76: ='T&Z'!K18 -> 104.9416667 | S76: ='T&Z'!L18 -> 104.9416667 | T76: ='T&Z'!M18 -> 104.9416667
A77: 1 | B77: 01 | C77: 2017 | D77: 6 | E77: Kosten | F77: Direkte Kosten | G77: Abschreibungen | H77: 1 | I77: ='T&Z'!B19 -> 0 | J77: ='T&Z'!C19 -> 0 | K77: ='T&Z'!D19 -> 0 | L77: ='T&Z'!E19 -> 0 | M77: ='T&Z'!F19 -> 0 | N77: ='T&Z'!G19 -> 0 | O77: ='T&Z'!H19 -> 0 | P77: ='T&Z'!I19 -> 0 | Q77: ='T&Z'!J19 -> 0 | R77: ='T&Z'!K19 -> 0 | S77: ='T&Z'!L19 -> 0 | T77: ='T&Z'!M19 -> 0
A78: 1 | B78: 01 | C78: 2017 | D78: 6 | E78: Kosten | F78: Direkte Kosten | G78: Gemeinkosten | H78: 1 | I78: ='T&Z'!B20 -> 124.2166667 | J78: ='T&Z'!C20 -> 124.2166667 | K78: ='T&Z'!D20 -> 124.2166667 | L78: ='T&Z'!E20 -> 124.2166667 | M78: ='T&Z'!F20 -> 124.2166667 | N78: ='T&Z'!G20 -> 124.2166667 | O78: ='T&Z'!H20 -> 124.2166667 | P78: ='T&Z'!I20 -> 124.2166667 | Q78: ='T&Z'!J20 -> 124.2166667 | R78: ='T&Z'!K20 -> 124.2166667 | S78: ='T&Z'!L20 -> 124.2166667 | T78: ='T&Z'!M20 -> 124.2166667
A79: 1 | B79: 01 | C79: 2017 | D79: 7 | E79: Umsatzerlöse | F79: VE Mietwagen | H79: 1 | I79: =MW!B3*-1 -> -7532.091793 | J79: =MW!C3*-1 -> -6650.486477 | K79: =MW!D3*-1 -> -9149.620297 | L79: =MW!E3*-1 -> -9747.954005 | M79: =MW!F3*-1 -> -8161.123787 | N79: =MW!G3*-1 -> -8948.477988 | O79: =MW!H3*-1 -> -7946.369728 | P79: =MW!I3*-1 -> -8265.761876 | Q79: =MW!J3*-1 -> -7543.68794 | R79: =MW!K3*-1 -> -10705.7277 | S79: =MW!L3*-1 -> -10442.74319 | T79: =MW!M3*-1 -> -8905.955223
A80: 1 | B80: 01 | C80: 2017 | D80: 7 | E80: Einsatzwerte | F80: EW Service | H80: 1 | I80: =MW!B4 -> 0 | J80: =MW!C4 -> 0 | K80: =MW!D4 -> 0 | L80: =MW!E4 -> 0 | M80: =MW!F4 -> 0 | N80: =MW!G4 -> 0 | O80: =MW!H4 -> 0 | P80: =MW!I4 -> 0 | Q80: =MW!J4 -> 0 | R80: =MW!K4 -> 0 | S80: =MW!L4 -> 0 | T80: =MW!M4 -> 0
A81: 1 | B81: 01 | C81: 2017 | D81: 7 | E81: Kosten | F81: Variable Kosten | G81: Fixum/Prov./Soz. | H81: 1 | I81: =MW!B8 -> 0 | J81: =MW!C8 -> 0 | K81: =MW!D8 -> 0 | L81: =MW!E8 -> 0 | M81: =MW!F8 -> 0 | N81: =MW!G8 -> 0 | O81: =MW!H8 -> 0 | P81: =MW!I8 -> 0 | Q81: =MW!J8 -> 0 | R81: =MW!K8 -> 0 | S81: =MW!L8 -> 0 | T81: =MW!M8 -> 0
A82: 1 | B82: 01 | C82: 2017 | D82: 7 | E82: Kosten | F82: Variable Kosten | G82: Provisionen | H82: 1 | I82: =MW!B9 -> 0 | J82: =MW!C9 -> 0 | K82: =MW!D9 -> 0 | L82: =MW!E9 -> 0 | M82: =MW!F9 -> 0 | N82: =MW!G9 -> 0 | O82: =MW!H9 -> 0 | P82: =MW!I9 -> 0 | Q82: =MW!J9 -> 0 | R82: =MW!K9 -> 0 | S82: =MW!L9 -> 0 | T82: =MW!M9 -> 0
A83: 1 | B83: 01 | C83: 2017 | D83: 7 | E83: Kosten | F83: Variable Kosten | G83: Fertigmachen | H83: 1 | I83: =MW!B10 -> 0 | J83: =MW!C10 -> 0 | K83: =MW!D10 -> 0 | L83: =MW!E10 -> 0 | M83: =MW!F10 -> 0 | N83: =MW!G10 -> 0 | O83: =MW!H10 -> 0 | P83: =MW!I10 -> 0 | Q83: =MW!J10 -> 0 | R83: =MW!K10 -> 0 | S83: =MW!L10 -> 0 | T83: =MW!M10 -> 0
A84: 1 | B84: 01 | C84: 2017 | D84: 7 | E84: Kosten | F84: Variable Kosten | G84: Kulanz | H84: 1 | I84: =MW!B11 -> 0 | J84: =MW!C11 -> 0 | K84: =MW!D11 -> 0 | L84: =MW!E11 -> 0 | M84: =MW!F11 -> 0 | N84: =MW!G11 -> 0 | O84: =MW!H11 -> 0 | P84: =MW!I11 -> 0 | Q84: =MW!J11 -> 0 | R84: =MW!K11 -> 0 | S84: =MW!L11 -> 0 | T84: =MW!M11 -> 0
A85: 1 | B85: 01 | C85: 2017 | D85: 7 | E85: Kosten | F85: Variable Kosten | G85: sonst. variable Kosten | H85: 1 | I85: =MW!B12 -> 0 | J85: =MW!C12 -> 0 | K85: =MW!D12 -> 0 | L85: =MW!E12 -> 0 | M85: =MW!F12 -> 0 | N85: =MW!G12 -> 0 | O85: =MW!H12 -> 0 | P85: =MW!I12 -> 0 | Q85: =MW!J12 -> 0 | R85: =MW!K12 -> 0 | S85: =MW!L12 -> 0 | T85: =MW!M12 -> 0
A86: 1 | B86: 01 | C86: 2017 | D86: 7 | E86: Kosten | F86: Direkte Kosten | G86: Personalkosten | H86: 1 | I86: =MW!B15 -> 0 | J86: =MW!C15 -> 0 | K86: =MW!D15 -> 0 | L86: =MW!E15 -> 0 | M86: =MW!F15 -> 0 | N86: =MW!G15 -> 0 | O86: =MW!H15 -> 0 | P86: =MW!I15 -> 0 | Q86: =MW!J15 -> 0 | R86: =MW!K15 -> 0 | S86: =MW!L15 -> 0 | T86: =MW!M15 -> 0
A87: 1 | B87: 01 | C87: 2017 | D87: 7 | E87: Kosten | F87: Direkte Kosten | G87: Werbekosten | H87: 1 | I87: =MW!B16 -> -179.0833333 | J87: =MW!C16 -> -179.0833333 | K87: =MW!D16 -> -179.0833333 | L87: =MW!E16 -> -179.0833333 | M87: =MW!F16 -> -179.0833333 | N87: =MW!G16 -> -179.0833333 | O87: =MW!H16 -> -179.0833333 | P87: =MW!I16 -> -179.0833333 | Q87: =MW!J16 -> -179.0833333 | R87: =MW!K16 -> -179.0833333 | S87: =MW!L16 -> -179.0833333 | T87: =MW!M16 -> -179.0833333
A88: 1 | B88: 01 | C88: 2017 | D88: 7 | E88: Kosten | F88: Direkte Kosten | G88: Fahrzeugkosten | H88: 1 | I88: =MW!B17 -> 2387.583333 | J88: =MW!C17 -> 2387.583333 | K88: =MW!D17 -> 2387.583333 | L88: =MW!E17 -> 2387.583333 | M88: =MW!F17 -> 2387.583333 | N88: =MW!G17 -> 2387.583333 | O88: =MW!H17 -> 2387.583333 | P88: =MW!I17 -> 2387.583333 | Q88: =MW!J17 -> 2387.583333 | R88: =MW!K17 -> 2387.583333 | S88: =MW!L17 -> 2387.583333 | T88: =MW!M17 -> 2387.583333
A89: 1 | B89: 01 | C89: 2017 | D89: 7 | E89: Kosten | F89: Direkte Kosten | G89: Abschreibungen | H89: 1 | I89: =MW!B18 -> 3624.833333 | J89: =MW!C18 -> 3624.833333 | K89: =MW!D18 -> 3624.833333 | L89: =MW!E18 -> 3624.833333 | M89: =MW!F18 -> 3624.833333 | N89: =MW!G18 -> 3624.833333 | O89: =MW!H18 -> 3624.833333 | P89: =MW!I18 -> 3624.833333 | Q89: =MW!J18 -> 3624.833333 | R89: =MW!K18 -> 3624.833333 | S89: =MW!L18 -> 3624.833333 | T89: =MW!M18 -> 3624.833333
A90: 1 | B90: 01 | C90: 2017 | D90: 7 | E90: Kosten | F90: Direkte Kosten | G90: Gemeinkosten | H90: 1 | I90: =MW!B19 -> 0 | J90: =MW!C19 -> 0 | K90: =MW!D19 -> 0 | L90: =MW!E19 -> 0 | M90: =MW!F19 -> 0 | N90: =MW!G19 -> 0 | O90: =MW!H19 -> 0 | P90: =MW!I19 -> 0 | Q90: =MW!J19 -> 0 | R90: =MW!K19 -> 0 | S90: =MW!L19 -> 0 | T90: =MW!M19 -> 0
A91: 1 | B91: 01 | C91: 2017 | D91: 0 | E91: Kosten | F91: Indirekte Kosten | G91: Personalkosten | H91: 1 | I91: ='C&S'!B25 -> 31000 | J91: ='C&S'!C25 -> 31000 | K91: ='C&S'!D25 -> 31000 | L91: ='C&S'!E25 -> 31000 | M91: ='C&S'!F25 -> 31000 | N91: ='C&S'!G25 -> 31000 | O91: ='C&S'!H25 -> 31000 | P91: ='C&S'!I25 -> 31000 | Q91: ='C&S'!J25 -> 31000 | R91: ='C&S'!K25 -> 31000 | S91: ='C&S'!L25 -> 31000 | T91: ='C&S'!M25 -> 31000
A92: 1 | B92: 01 | C92: 2017 | D92: 0 | E92: Kosten | F92: Indirekte Kosten | G92: Werbekosten | H92: 1 | I92: ='C&S'!B26 -> 1083.333333 | J92: ='C&S'!C26 -> 1083.333333 | K92: ='C&S'!D26 -> 1083.333333 | L92: ='C&S'!E26 -> 1083.333333 | M92: ='C&S'!F26 -> 1083.333333 | N92: ='C&S'!G26 -> 1083.333333 | O92: ='C&S'!H26 -> 1083.333333 | P92: ='C&S'!I26 -> 1083.333333 | Q92: ='C&S'!J26 -> 1083.333333 | R92: ='C&S'!K26 -> 1083.333333 | S92: ='C&S'!L26 -> 1083.333333 | T92: ='C&S'!M26 -> 1083.333333
A93: 1 | B93: 01 | C93: 2017 | D93: 0 | E93: Kosten | F93: Indirekte Kosten | G93: Fahrzeugkosten | H93: 1 | I93: ='C&S'!B27 -> 666.6666667 | J93: ='C&S'!C27 -> 666.6666667 | K93: ='C&S'!D27 -> 666.6666667 | L93: ='C&S'!E27 -> 666.6666667 | M93: ='C&S'!F27 -> 666.6666667 | N93: ='C&S'!G27 -> 666.6666667 | O93: ='C&S'!H27 -> 666.6666667 | P93: ='C&S'!I27 -> 666.6666667 | Q93: ='C&S'!J27 -> 666.6666667 | R93: ='C&S'!K27 -> 666.6666667 | S93: ='C&S'!L27 -> 666.6666667 | T93: ='C&S'!M27 -> 666.6666667
A94: 1 | B94: 01 | C94: 2017 | D94: 0 | E94: Kosten | F94: Indirekte Kosten | G94: Abschreibungen | H94: 1 | I94: ='C&S'!B28 -> 8750 | J94: ='C&S'!C28 -> 8750 | K94: ='C&S'!D28 -> 8750 | L94: ='C&S'!E28 -> 8750 | M94: ='C&S'!F28 -> 8750 | N94: ='C&S'!G28 -> 8750 | O94: ='C&S'!H28 -> 8750 | P94: ='C&S'!I28 -> 8750 | Q94: ='C&S'!J28 -> 8750 | R94: ='C&S'!K28 -> 8750 | S94: ='C&S'!L28 -> 8750 | T94: ='C&S'!M28 -> 8750
A95: 1 | B95: 01 | C95: 2017 | D95: 0 | E95: Kosten | F95: Indirekte Kosten | G95: Gemeinkosten | H95: 1 | I95: ='C&S'!B29 -> 41833.33333 | J95: ='C&S'!C29 -> 41833.33333 | K95: ='C&S'!D29 -> 41833.33333 | L95: ='C&S'!E29 -> 41833.33333 | M95: ='C&S'!F29 -> 41833.33333 | N95: ='C&S'!G29 -> 41833.33333 | O95: ='C&S'!H29 -> 41833.33333 | P95: ='C&S'!I29 -> 41833.33333 | Q95: ='C&S'!J29 -> 41833.33333 | R95: ='C&S'!K29 -> 41833.33333 | S95: ='C&S'!L29 -> 41833.33333 | T95: ='C&S'!M29 -> 41833.33333
A96: 1 | B96: 01 | C96: 2017 | D96: 0 | E96: Kosten | F96: Indirekte Kosten | G96: Raumkosten | H96: 1 | I96: ='C&S'!B30 -> 14333.33333 | J96: ='C&S'!C30 -> 14333.33333 | K96: ='C&S'!D30 -> 14333.33333 | L96: ='C&S'!E30 -> 14333.33333 | M96: ='C&S'!F30 -> 14333.33333 | N96: ='C&S'!G30 -> 14333.33333 | O96: ='C&S'!H30 -> 14333.33333 | P96: ='C&S'!I30 -> 14333.33333 | Q96: ='C&S'!J30 -> 14333.33333 | R96: ='C&S'!K30 -> 14333.33333 | S96: ='C&S'!L30 -> 14333.33333 | T96: ='C&S'!M30 -> 14333.33333
A97: 1 | B97: 01 | C97: 2017 | D97: 0 | E97: Kosten | F97: Indirekte Kosten | G97: Kalk. Kosten | H97: 1 | I97: ='C&S'!B31 -> 5500 | J97: ='C&S'!C31 -> 5500 | K97: ='C&S'!D31 -> 5500 | L97: ='C&S'!E31 -> 5500 | M97: ='C&S'!F31 -> 5500 | N97: ='C&S'!G31 -> 5500 | O97: ='C&S'!H31 -> 5500 | P97: ='C&S'!I31 -> 5500 | Q97: ='C&S'!J31 -> 5500 | R97: ='C&S'!K31 -> 5500 | S97: ='C&S'!L31 -> 5500 | T97: ='C&S'!M31 -> 5500
A98: 1 | B98: 01 | C98: 2017 | D98: 0 | E98: Neutrales Ergebnis | F98: Neutraler Ertrag | H98: 1 | I98: ='C&S'!B34*-1 -> 2500 | J98: ='C&S'!C34*-1 -> 2500 | K98: ='C&S'!D34*-1 -> 2500 | L98: ='C&S'!E34*-1 -> 2500 | M98: ='C&S'!F34*-1 -> 2500 | N98: ='C&S'!G34*-1 -> 2500 | O98: ='C&S'!H34*-1 -> 2500 | P98: ='C&S'!I34*-1 -> 2500 | Q98: ='C&S'!J34*-1 -> 2500 | R98: ='C&S'!K34*-1 -> 2500 | S98: ='C&S'!L34*-1 -> 2500 | T98: ='C&S'!M34*-1 -> 2500
